{"text_format":"3","workbook":"xlsx","n_sheets":5,"sheets":["Time Calc","NE","NW","SE","SW"],"not_rendered":{"defined_names":8},"read":"whole","date_system":"1900"}

{"sheet":"Time Calc","index":0,"n_rows":13,"n_cols":8,"rows_kept":13,"merged":[[0,0,0,7],[1,6,1,7]]}
["Estimated Number of Weeks of Mowing Season"]
["Mowing Season for 2021","7-14 Day Locations",null,"Fields - Cool Season ","Fields - Bermuda ",null,"Months"]
["Week containing April 1",1,null,1]
["April",4,null,4,null,null,"April",1]
["May",4,null,4,null,null,"May",1]
["June",5,null,5,5,null,"June",1]
["July*",2,null,4,4,null,"July",1]
["Aug",2,null,4,4,null,"Aug",1]
["Sept",3,null,5,5,null,"Sept",1]
["Oct",2,null,4,4,null,"Oct",1]
["Total ",{"$f":"SUM(B3:B10)","v":23},null,{"$f":"SUM(D3:D10)","v":31},{"$f":"SUM(E6:E10)","v":22},null,null,{"$f":"SUM(H4:H10)","v":7}]
[]
["* Changes from 7-day to 14-day cycle."]

{"sheet":"NE","index":1,"n_rows":273,"n_cols":9,"rows_kept":273,"merged":[[6,0,6,7],[10,0,10,7],[18,0,18,7],[157,0,157,7],[257,0,257,7],[259,0,259,8],[261,0,261,7],[263,2,263,7],[264,2,264,6],[265,2,265,6],[266,2,266,6],[267,2,267,6],[268,2,268,6],[269,2,269,6],[270,2,270,6],[271,2,271,6],[272,2,272,6]]}
["Location  ID","Location","Description","Type","Freq.","Estimated Quantity","Weeks or Months","PrIce per Week or Month","Annual Mowing Price"]
[262,"Dorothy Hamm School  4100 N Vacation Ln- (HB Woodlawn)","Athletic Field - Rectangle - Bermuda Grass - Irrigation - Reel Mower","P","AF",22,"Weeks",null,{"$f":"F2*H2","v":0}]
[264,"Oak Grove Park","Athletic Field - Rectangle - Bermuda Grass - Irrigation - Reel Mower","P","AF",22,"Weeks",null,{"$f":"F3*H3","v":0}]
[265,"Quincy Park   -  1021 N. Quincy St","Athletic Field #1, 2 and Aux  - Bermuda Grass - Irrigation - Reel Mower","P","AF",22,"Weeks",null,{"$f":"F4*H4","v":0}]
[267,"Quincy Park   -  1021 N. Quincy St","Athletic Field #3 - Diamond - Bermuda Grass - Irrigation - Reel Mower","P","AF",22,"Weeks",null,{"$f":"F5*H5","v":0}]
[270,"Washington Liberty High School","Athletic Field - Combo Diamond - Bermuda Grass - Irrigation - Reel Mower","P","AF",22,"Weeks",null,{"$f":"F6*H6","v":0}]
["Lump Sum Total for Athletic Fields with Bermuda Grass",{"$nulls":7},{"$f":"SUM(I2:I6)","v":0}]
[]
[263,"Key Elementary School","Athletic Field - Rectangle - Cool Season Grass - Irrigation","P","AF",31,"Weeks",null,{"$f":"F9*H9","v":0}]
[269,"Stratford Park  -  4321 Old Dominion Dr.","Athletic Field - Diamond - Cool Season Grass - Irrigation","P","AF",31,"Weeks",null,{"$f":"F10*H10","v":0}]
["Lump Sum Total For Athletic Fields Cool Season Grass With Irrigation",{"$nulls":7},{"$f":"SUM(I9:I10)","v":0}]
[]
[260,"Dawson Terrace Center  -  Taft St & 21St St","Athletic Field - Rectangle - Cool Season Grass - No Irrigation","P","AF",31,"Weeks",null,{"$f":"F13*H13","v":0}]
[261,"Long Branch School/Fillmore Park ","Athletic Field - Combo - Diamond - Cool Season Grass - No Irrigation","P","AF",31,"Weeks",null,{"$f":"F14*H14","v":0}]
[271,"Taylor Elementary School","Athletic Field #1 - Combo Diamond - Cool Season Grass - No Irrigation","P","AF",31,"Weeks",null,0]
[272,"Taylor Elementary School","Athletic Field #2 - Combo Diamond - Cool Season Grass - No Irrigation","P","AF",31,"Weeks",null,0]
[273,"Woodmont Center  -  N Of 24Th St On Filmore","Athletic Field - Rectangle - Cool Season Grass - No Irrigation","P","AF",31,"Weeks",null,0]
[274,"Fort Ethan Allen/Madison Comm. Center - 3829 N. Stafford St","Athletic Field - Rectangle - Cool Season Grass - No Irrigation","P","AF",31,"Weeks",null,0]
["Lump Sum Total For Athletic Fields Cool Season Grass - No Irrigation",{"$nulls":7},{"$f":"SUM(I13:I18)","v":0}]
[1,"40Th & Upland St","Row Easement","U","7-14",23,"Weeks",null,{"$f":"F20*H20","v":0}]
[2,"41St Street & Upland St.   ","Street Island","U","7-14",23,"Weeks",null,{"$f":"F21*H21","v":0}]
[8,"Glebe Park  -  Old Glebe Rd East Of Tazwell St","All Areas: Woods Edge & Steps, Fence Lines Playground ","P","7-14",23,"Weeks",null,0]
[9,"Fort Ethan Allen/Madison Comm. Center - 3829 N. Stafford St","All Areas: Playground, Woods Edge, Fence Areas Mechanical Edging along entrance way","P","7-14",23,"Weeks",null,0]
[12,"Holmberg Park  -  38Th & N. Upland St.","All Areas","P","7-14",23,"Weeks",null,0]
[13,"Old Glebe Rd @ Glebe Rd","Center Island With Stop Sign","U","7-14",23,"Weeks",null,0]
[15,"Gulf Branch Nature Center -3608 N. Military Rd","Mow Along Entrance Drive, Around Base Of Building And Parking Lot","P","7-14",23,"Weeks",null,0]
[19,"38Th St. & N. Wakefield St.","Utility Strip And Easement","U","7-14",23,"Weeks",null,0]
[22,"Broyhill Forest Park  -  3510 N. Utah St.","North Of 35Th St On Utah Both Sides Of Street","P","7-14",23,"Weeks",null,0]
[23,"36Th St  -  3632 To 3837  At Military Rd","Open Areas","U","7-14",23,"Weeks",null,0]
[25,"33Rd St   -  Thomas St To Randolph St  ","N 4107 To  N 4133 33Rd St","U","7-14",23,"Weeks",null,0]
[26,"36Th & Glebe Rd  ","Island","U","7-14",23,"Weeks",null,0]
[27,"Donaldson Run Park - 4020 N. 30Th St.","Along 30Th From Military Rd To Pollard St","P","7-14",23,"Weeks",null,0]
[28,"Stafford St   -  Dead End  East Of  31 St ","Island Area","U","7-14",23,"Weeks",null,0]
[30,"Marcey Rd Park    2700 Marcy Road","Located Inside Regional Park Area","P","7-14",23,"Weeks",null,0]
[33,"Rockspring Rd. @ Wakefield St.","Triangular Island At Intersection","U","7-14",23,"Weeks",null,0]
[35,"Taylor Park    5000  Military Rd @ 3Oth St","Area Along Military Rd.","P","7-14",23,"Weeks",null,0]
[38,"Vermont Bike Trail -  At N. Vernon St","2547 N. Vernon St To 2501 N Upton St  60' X 15'","P","7-14",23,"Weeks",null,0]
[40,"Taylor Elementary School  -  2600 N. Stuart St","All Areas Except Inside Building Sidewalks And Parking Lots","S","7-14",23,"Weeks",null,0]
[41,"Old Dominion & Glebe Rd","2 Islands & Adj. Utility Strips","U","7-14",23,"Weeks",null,0]
[42,"Yorktown Blvd. @ Glebe Rd.","Street Median East Of Glebe Rd. Overpass","U","7-14",23,"Weeks",null,0]
[44,"4722 N 26Th Street","House Lot Property","P","7-14",23,"Weeks",null,0]
[46,"Leaf Dump Lot  26Th St @ Yorktown Blvd","Open Area East Side Of Leaf Dump Site","U","7-14",23,"Weeks",null,0]
[48,"Utah St & Taylor St. Park  ","Fenced In Area And Adj. Areas","P","7-14",23,"Weeks",null,0]
[55,"24Th St @ Old Dominion Dr  -   4655 To 4711 ","Row Easement From 4655 To 4711","U","7-14",23,"Weeks",null,0]
[60,"Military Road & 25Th Rd N - 2 areas","Corners Of Intersection & Medians","U","7-14",23,"Weeks",null,0]
[61,"Ridgeview Rd North Of Nellie Custis","Cul-De-Sac Island At Dead End","U","7-14",23,"Weeks",null,0]
[62,"Windy Run Park  -  Nellie Custis Drive  ","Mow To End Of Kenmore St","P","7-14",23,"Weeks",null,0]
[63,"Woodmont Center  -  N Of 24Th St On Filmore","All Areas: Surrounding Fields, Fence Areas, Playground, Driveways.  Mechanical edging along entrance way","S","7-14",23,"Weeks",null,0]
[66,"Fort Smith Park -  2411 24Th St North","Street Row, House Grounds, Fort Area, Open Spaces","P","7-14",23,"Weeks",null,0]
[67,"Dawson Terrace Center  -  Taft St & 21St St","All Areas: Playground, Woods Edge, Fence Areas Mechanical Edging along entrance way","P","7-14",23,"Weeks",null,0]
[74,"Lee Highway  -  Albemarle St To Wakefield St","6 Islands & Old Dominion Intersection Area","U","7-14",23,"Weeks",null,0]
[76,"Stratford Park  -  4321 Old Dominion Dr.","All Areas","P","7-14",23,"Weeks",null,0]
[78,"Dorothy Hamm School  4100 N Vacation Ln-Frmly HB Woodlawn","All Areas Except Inside Building Sidewalks And Parking Lots","S","7-14",23,"Weeks",null,0]
[79,"Woodstock Park -  2000 Block Of Woodstock ","All Areas  20Th Rd & Woodstock St","P","7-14",23,"Weeks",null,0]
[80,"21St St. & N. Stafford St.","Sidewalk Island & Lot Behind Sidewalk On 21St @2045 Stafford St.","U","7-14",23,"Weeks",null,0]
[81,"Cherrydale Library  -  N. Military Rd @ 22Nd St","All Areas: Building Perimeter, Hillside, Mechanical edging along entrance way","L","7-14",23,"Weeks",null,0]
[82,"Cherrydale Park    2100 N. Quincy St. ","Enter From Behind 7/11  West Of Pollard On Old Dominion ","P","7-14",23,"Weeks",null,0]
[86,"Thrifton Hill Park  -  23Rd & N. Edgewood St","All Areas: Rear Woods Edge & Steps, Fence Lines Playground ","P","7-14",23,"Weeks",null,0]
[87,"Maywood Mini Park  -  3210 N 22Nd St","All Areas","P","7-14",23,"Weeks",null,0]
[94,"Quincy Street  -  20Th Rd To Lee Highway","All Islands And U-Strips ","U","7-14",23,"Weeks",null,0]
[95,"Lee Highway & N. Quincy St","3 Islands   Mowing At Ls Areas","U","7-14",23,"Weeks",null,0]
[98,"Lee Highway  -   Lincoln St To Monroe ","Islands In 3500 Block","U","7-14",23,"Weeks",null,0]
[100,"Spout Run Pkway  -  Lee Highway To I-66 Overpass","Islands","U","7-14",23,"Weeks",null,0]
[101,"Lee Highway  -  Spout Run Pkway To Lincoln St","Islands","U","7-14",23,"Weeks",null,0]
[105,"Cherry Valley Park - 1700  Quincy St.","Access Also From Nelson & 17th  (Area has expanded since Tax Map)","P","7-14",23,"Weeks",null,0]
[109,"Lyon Village Park  -  1800 Highland St","All Areas: Steps, Fence Lines, Playground, U-Strips ","P","7-14",23,"Weeks",null,0]
[113,"18Th St. & Cleveland St.","Traffic Island","U","7-14",23,"Weeks",null,0]
[114,"Nelly Custis Drive  -  Military Rd To Lorcum L.","All Islands","U","7-14",23,"Weeks",null,0]
[115,"Oakgrove Park  -  1500 N. Quincy St","Area Surrounding Field, Fence Edges, Embankment, Perimeter Areas ","P","7-14",23,"Weeks",null,0]
[116,"Vacant Lot  1601 N. Quincy St","Open Lot Across Quincy St From Oakgrove Park","P","7-14",23,"Weeks",null,0]
[122,"Hayes Park   -  1400 Lincoln St At 15Th St","All Areas Including Row Easement Along 15Th St","P","7-14",23,"Weeks",null,0]
[123,"Arlington Science Focus School  -  1500 N. Lincoln St.","All Areas Except Inside Building Sidewalks, Parking Lots","S","7-14",23,"Weeks",null,0]
[124,"James Hunter Park (1230 N Hartford)","Grass areas and utility strips","P","7-14",23,"Weeks",null,0]
[125,"Herndon St. - 1401","Utility Strip In Front Of House","U","7-14",23,"Weeks",null,0]
[126,"17Th St. & N. Hartford St","Island","U","7-14",23,"Weeks",null,0]
[127,"Key Blvd & Highland St ","7 Corner Areas  ","U","7-14",23,"Weeks",null,0]
[128,"Edgewood St & N. Franklin St","Island","U","7-14",23,"Weeks",null,0]
[129,"Danville & Franklin St  ","Four Islands @ Intersection","U","7-14",23,"Weeks",null,0]
[130,"Clarendon Blvd  -  Adam St To Danville St","Vacant Lot, U-Strips And Right Of Ways","U","7-14",23,"Weeks",null,0]
[132,"Mccoy Park  -  N Vetch St & North 20Th St","All Areas Except The Drainage Basin","P","7-14",23,"Weeks",null,0]
[137,"Key Blvd. Garden Plots","Open Area On 19Th St. Side","P","7-14",23,"Weeks",null,0]
[138,"Lee Highway  -  Nash St To Lynn St","Islands Adjacent To Gateway Park ","P","7-14",23,"Weeks",null,0]
[140,"Gateway Park  -  1300 Lee Highway","All Grass Panels","P","7-14",23,"Weeks",null,0]
[141,"Potomac Tower Park  1955 N. Lynn St","Adj. To Parkway Entrance Ramp","P","7-14",23,"Weeks",null,0]
[143,"Child Care Center -1915 N. Uhle St @ Lee Hwy","Building Perimeter, Parking Lot, Inside And Outside Fenced Areas","P","7-14",23,"Weeks",null,{"$f":"F85*H85","v":0}]
[145,"Fire Station # 10  -  1559 Wilson Blvd","All Areas And Adj. Street Islands, Mechanical edging along entrance way","F","7-14",23,"Weeks",null,0]
[146,"Wilson Center  -  Wilson Blvd & N. Quinn St","All Areas: Sports Field, Playground, U-Strips, Fence Areas","P","7-14",23,"Weeks",null,0]
[147,"Argus House - 1527 Clarendon Blvd.","Small Picnic Area At Rear Of Building","D","7-14",23,"Weeks",null,0]
[149,"Kent St  Vacant Lot -  South Of 19Th St","Lot At Beginning Of Ramp   Buildings On 3 Sides","P","7-14",23,"Weeks",null,0]
[150,"Kent & 19Th Street","Triangle Island","P","7-14",23,"Weeks",null,0]
[151,"Wilson Blvd  -  Lynn St To Ridge Road","Island","P","7-14",23,"Weeks",null,0]
[153,"Key School  -  2300 Key Blvd","All Areas Except Inside Building Sidewalks And Parking Lots","S","7-14",23,"Weeks",null,0]
[154,"Key Boulevard  -  At N. Bryan St","","U","7-14",23,"Weeks",null,0]
[155,"Rhodes & Clarendon Blvd.   ","Street Islands","U","7-14",23,"Weeks",null,0]
[157,"Fairfax Drive House 1727 E. Of Pierce St","Mow Front And Rear Area And Perimeters","D","7-14",23,"Weeks",null,0]
[158,"Hillside Park - 1601 N. Pierce Street ","All Areas Including Perimeters To All Streets","P","7-14",23,"Weeks",null,0]
[161,"Dark Star Park -  Ft Myer Dr @ Fairfax Drive","Island Areas With Balls","P","7-14",23,"Weeks",null,0]
[162,"Meade St. Park - 1550 N. Meade St.","Sw Corner Island At Rt.50 To Service Rd.","P","7-14",23,"Weeks",null,0]
[163,"Clarendon Park  -  Wilson Blvd & Highland St","All Turf Areas","P","7-14",23,"Weeks",null,0]
[164,"Rt. 50 East Entryway","Islands","U","7-14",23,"Weeks",null,0]
[169,"Courthouse Building - 15Th St & Courthouse Rd","All Areas: Around Building, Utility Strips & Interior Courtyard","O","7-14",23,"Weeks",null,0]
[172,"Ft Myer Heights Park -  1400 N Ft Myer Dr","South Of Rt. 50 Adj. To Apts.","P","7-14",23,"Weeks",null,0]
[175,"Meade St South @ S 14Th St","Island Adj. To Iwo Jima Memorial ","U","7-14",23,"Weeks",null,0]
[176,"Clarenford Station Park - 1300 N. Vermont St.","From G. Mason Drive Behind Motel To Playground At Vermont St","P","7-14",23,"Weeks",null,0]
[178,"Fairfax Drive  -  Wilson Blvd. To Glebe Rd.","All Islands","U","7-14",23,"Weeks",null,0]
[179,"Wilson Blvd & Fairfax Drive","Mowing At Ls Maintenance Areas","U","7-14",23,"Weeks",null,0]
[180,"Glebe Rd & Fairfax Drive","10 Street Islands","U","7-14",23,"Weeks",null,0]
[181,"W & L High School -  1300 N. Quincy St","All Areas Except Inside Building Sidewalks And Parking Lots","S","7-14",23,"Weeks",null,0]
[183,"Aps Education Center-1426 N. Quincy St.","Outside Perimeter Of Parking  Lot  & 15 St. Utility Strip","S","7-14",23,"Weeks",null,0]
[186,"Kirkwood Rd   -  Islands & Open Areas","Washington Blvd To Lee Hwy.  All Public Open Spaces Both Sides","U","7-14",23,"Weeks",null,0]
[187,"13Th Street -Jackson To Harrtford St","Row Easements","U","7-14",23,"Weeks",null,0]
[191,"Fairfax Drive  -  Danville To Barton St","Row Easements Both Sides","U","7-14",23,"Weeks",null,0]
[192,"Utility Strip In Front Of 1222 N. Cleveland St","Row Easement","U","7-14",23,"Weeks",null,0]
[193,"Clarendon Blvd. @ Danville St.","Utility Strip & Area Surrounded By Brick Paver Walkway","U","7-14",23,"Weeks",null,0]
[194,"11Th & Danville St. Park","Open Lot Along 11Th St. From Danville To Fillmore St.","P","7-14",23,"Weeks",null,0]
[196,"Central Library  -  1015 N. Quincy St.","All Areas, Parking Lots, U-Strips, Adjacent to Tennis Courts, Mechanical Edging along entrance way","L","7-14",23,"Weeks",null,0]
[197,"Quincy Park   -  1021 N. Quincy St","All areas Surrounding Fields, Playground, Tennis Courts, Picnic Area, U-Strips","P","7-14",23,"Weeks",null,0]
[198,"Washington Blvd & N Quincy St","Islands","U","7-14",23,"Weeks",null,0]
[199,"Kenmore St  -  1919 @ Wilson Blvd  ","Utility Strip Nw Corner & In Front Of 932 ","U","7-14",23,"Weeks",null,0]
[202,"Fire Station #4   -  3121 N. 10Th St.","All Areas And Adj. Street Islands, Mechanical edging along entrance way","F","7-14",23,"Weeks",null,0]
[203,"Clarendon House   -  3141 N. 10Th St.","All Areas And Adj. Street Islands","DES","7-14",23,"Weeks",null,0]
[204,"10Th St  -  Wilson Blvd To Rt. 50","Medians/Ultility Islands Wilson Blvd To Wash Blvd & East & West Ramp Of Rt. 50","U","7-14",23,"Weeks",null,0]
[205,"Herselle Milliken Park    820 N. Lincoln St.","All Areas Between House And Store Building","P","7-14",23,"Weeks",null,0]
[206,"Maury Art Center - 3550 N. Wilson Blvd","All Areas: Curbs, Sculpture Garden, Playground, Fence Edges","P","7-14",23,"Weeks",null,0]
[207,"Oakland Park  3701 Wilson Blvd.","All Areas","P","7-14",23,"Weeks",null,0]
[208,"Clay Park  -  3011 N. 7Th St","All Areas","P","7-14",23,"Weeks",null,0]
[209,"Mosaic Park - 544 N Pollard st","All areas including adjacent utility strips","P","7-14",23,"Weeks",null,0]
[213,"7Th. Street  -  Nelson St To  Oakland St","","U","7-14",23,"Weeks",null,0]
[214,"6Th St & Monroe St","Street Island","U","7-14",23,"Weeks",null,0]
[217,"4Th St & Fillmore St   300 Blk Of Filmore   ","","U","7-14",23,"Weeks",null,0]
[218,"Rocky Run Park    1200 Barton St","All Areas","P","7-14",23,"Weeks",null,0]
[221,"10Th & Barton St Garden Area","Between Gardens & Street And Adj. Areas","P","7-14",23,"Weeks",null,0]
[223,"Washington Blvd  -  Highland St To Rt. 50 ","All Island And Utility Some Utility Strips","U","7-14",23,"Weeks",null,0]
[224,"Oakland Street Mini Park  122 S Oakland St","South Of N 2Nd St And Oakland St Intersection","P","7-14",23,"Weeks",null,0]
[225,"Fillmore Park & Trail    33 N. Filmore St","Washington Blvd. North To Fillmore St.","P","7-14",23,"Weeks",null,0]
[226,"Long Branch School  -  33 N. Fillmore St","All Areas Except Inside Building Sidewalks And Parking Lots","S","7-14",23,"Weeks",null,0]
[228,"N. Barton & Bryan St.","Median At Intersection","U","7-14",23,"Weeks",null,0]
[229,"N. Randolph  Street","Utility Strips Between N Glebe Rd And Wilson Blvd.","U","7-14",23,"Weeks",null,0]
[230,"N. 16Th Street & Custis Rd.","Median At The Intersection Of N. 16Th  & Custis Rd.","U","7-14",23,"Weeks",null,0]
[231,"Glebe & Randolph Park",null,"p","7-14",23,"Weeks",null,0]
[232,"N. Monroe St.","Utility Strips  Both Sides Of Street Between I-66 & N. 17Th St.","U","7-14",23,"Weeks",null,0]
[233,"Sunburst Triangle","Parcel Of Land At Rt.50 & Fairfax Drive","U","7-14",23,"Weeks",null,0]
[234,"Rt 50 East-Service Road","Utility Strip From  N. Queen To Rolfe St.","U","7-14",23,"Weeks",null,0]
[235,"Petco-N. Fairfax Dr. ","Median At N. Farifax Dr. & Washington Blvd.","U","7-14",23,"Weeks",null,0]
[237,"N. Barton St.","Utility Strip Between  N. 11Th  & 12Th St. (West Side Of St.)","U","7-14",23,"Weeks",null,0]
[238,"N. Jackson St. & Rt. 50","Area Surrounding Foot Bridge","P","7-14",23,"Weeks",null,0]
[239,"Fire Station #3-4100 Old Dominion Dr","All Areas, Parking Lots, U-Strips, Adjacent Park Area, Mechanical Edging along entrance way","F","7-14",23,"Weeks",null,0]
[240,"N. Woodstock & 20Th Rd. N","Median At Intersection","U","7-14",23,"Weeks",null,0]
[241,"Vacation Lane & 25Th St N.","Row At Corner Of Vacation & 25Th St N","U","7-14",23,"Weeks",null,{"$f":"F149*H149","v":0}]
[242,"Pershing Drive","Median From Rt. 50 To N. Barton St.","U","7-14",23,"Weeks",null,0]
[244,"Johnson St N- 1504","Both Sides Of Sidewalk Adjacent To 1504","U","7-14",23,"Weeks",null,0]
[245,"N Oak St","Utility Strips Between Wilson & 16Th Rd N","U","7-14",23,"Weeks",null,0]
[246,"The Buck Property-N Quincy & 14Th St","All Areas & Ivy Perimeter Of All Buildings","DES","7-14",23,"Weeks",null,0]
[247,"Wilson Blvd- Ballston","3 Medians & Utility Strips From Glebe to just past Stuart St.","U","7-14",23,"Weeks",null,0]
[250,"1617 N Garfield St","Utility Strips Around Perimeter Of House","U","7-14",23,"Weeks",null,0]
[251,"Roberts Lane & N Lincoln St ","Utility Strip From Lincoln To Monroe St","U","7-14",23,"Weeks",null,0]
[252,"Clarendon Blvd & Veitch St","Median In Fron Of 2100 Clarendon Blvd.","U","7-14",23,"Weeks",null,0]
["Lump Sum Total For 7- 14 day Cycle",{"$nulls":7},{"$f":"SUM(I20:I157)","v":0}]
[]
[3,"Randolph St   -  23Rd St To Lorcom Lane  ","Row easement","U",30,7,"Months",null,{"$f":"F160*H160","v":0}]
[4,"41St  -  Glebe Rd To Dead End  Both Sides","Row easements  Also Under Parkway ","U",30,7,"Months",null,{"$f":"F161*H161","v":0}]
[5,"41St Street  -  Off Richmond St","At Dead End Of 41St St","U",30,7,"Months",null,0]
[6,"Richmond St   -  Old Glebe Rd To 41St St   ","East Row easement","U",30,7,"Months",null,0]
[7,"Ft Ethan Allen Park  -  4311 Old Glebe Rd ","House Grounds  Adj. To Glebe Park","P",30,7,"Months",null,0]
[10,"Monroe St  -  3655 To 3671","Vacant Lot","U",30,7,"Months",null,0]
[11,"Dittmar St -  4746 To Glebe Road","South Right Of Way easement","U",30,7,"Months",null,0]
[14,"37Th St To End Of Randolph St","Right Of Way Easement Both Sides","U",30,7,"Months",null,0]
[16,"Military Rd  -  3730 To 37Th St","Row Easement","U",30,7,"Months",null,0]
[17,"Kenmore St  -  3445","Bank Across From And In Front Of Location","U",30,7,"Months",null,0]
[18,"Roberts Lane  -  3525 To 3469","East And North Of Monroe St","U",30,7,"Months",null,0]
[20,"Vermont St  -  House At 3725 To Ditmar St","U-Strip","U",30,7,"Months",null,0]
[21,"Dittmar St  -  4618 @ Wakefield St","South Right Of Way Easement","U",30,7,"Months",null,0]
[24,"36Th St. & Woodstock St    3600 Block","Row Easement","U",30,7,"Months",null,0]
[29,"31St St  -  Military Rd To Quincy St  ","U-Strips Both Sides","U",30,7,"Months",null,0]
[31,"Deadend N. Quebec St. Off N. Randolph St.","Utility Strip & 4' Back Of Walkway From 2827 To 2810","U",30,7,"Months",null,0]
[32,"32Nd St & Abingdon St","Across From 3139 Abingdon St","U",30,7,"Months",null,0]
[34,"Upshur Street  -  South Of 26Th ","East Side","U",30,7,"Months",null,0]
[36,"Military Rd   -  2707 To Beachwood Circle ","Across From Taylor Park","U",30,7,"Months",null,0]
[37,"26Th Street  -  4514 To 4555","North Right Of Way Easement","U",30,7,"Months",null,0]
[39,"Utah St   -  Vacation Lane  To Deadend","Row Easement","U",30,7,"Months",null,0]
[43,"26Th Street  -  4624 To 4712","Glebe & 26Th St","U",30,7,"Months",null,0]
[45,"Old Dominion Drive  - 25Th St To 26Th St","Right Of Way Easement Both Sides","U",30,7,"Months",null,0]
[47,"26Th Street Bike Trail-Yorktown Blvd To Vermont St","6 Ft Back On Each Side Of Trail","P",30,7,"Months",null,0]
[49,"Utah St  -  2420 To Taylor St ","Row Easements","U",30,7,"Months",null,0]
[50,"25Th St  -  Richmond St To Vacant Lot","Large Open Areas","U",30,7,"Months",null,0]
[51,"Richmond St   -  2306 To Deadend","Both Sides Row Easements","U",30,7,"Months",null,0]
[52,"25Th Rd & Old Dominion","Sw Corner Lot","U",30,7,"Months",null,0]
[53,"Old Dominion Dr. -  25Th To 26Th St  ","Vacant Lot  East Side  Adj. To Salt Tank","U",30,7,"Months",null,0]
[54,"23Rd St  -  At Old Dominion Drive ","Northwest Corner Lot","U",30,7,"Months",null,0]
[56,"Randolph St   -  2756 To 2736","Row Easement","U",30,7,"Months",null,0]
[57,"Vacation Lane & Taylor St.","Triangular Corner Plot in 2300 Blk. Vacation Ln","U",30,7,"Months",null,0]
[58,"Randolph St   -  4101 To 4020 ","Both Sides  Row Easements","U",30,7,"Months",null,0]
[59,"25Th St   House At 4006 To Military Rd","U- Strips","U",30,7,"Months",null,0]
[64,"24Th St & Fillmore St.","Roadside From Drive On 24Th To Drive On Fillmore St.","U",30,7,"Months",null,0]
[65,"Edgewood St.  -  2440 To 24Th St","North Right Of Way Easement","U",30,7,"Months",null,0]
[70,"Scott St   -   21St Rd To Dead End","","U",30,7,"Months",null,0]
[71,"Rolfe St   -   2126 To Dead End","West Row Easement","U",30,7,"Months",null,0]
[72,"Oak St  -    22Nd St To Lee Highway","Also Behind Barrier   East Right Of Way Easement","U",30,7,"Months",null,0]
[73,"23Rd St & Albemarle St  ","Across From  4716  N Ablemarle St","U",30,7,"Months",null,0]
[75,"Upton St. @ Old Dominion Dr.","West Side Of Upton From Old Dominion Dr. End Of Fence","U",30,7,"Months",null,0]
[77,"Strafford Park Hillside","Steep Bank Around Upper Field","P",30,7,"Months",null,0]
[83,"2100 Pollard St.","Power Box Area Next To 2114 Pollard St.","U",30,7,"Months",null,0]
[84,"Nelson Street   -   21St To 22Nd Street ","Right Of Way Areas","U",30,7,"Months",null,0]
[85,"Quincy St @ 2244 To Quebec St @ 4016","Right Of Way Areas","U",30,7,"Months",null,0]
[88,"Kenmore St @ 23Rd Rd","Nw Side Utility Strip","U",30,7,"Months",null,0]
[89,"Fillmore St -  3442 To 2342 (@ Lorcom Lane)","West Right Of Way Easement","U",30,7,"Months",null,0]
[90,"Filmore St & Custis St To Custis Trail   ","Thrifton Hill Footpath","U",30,7,"Months",null,0]
[91,"Lorcom Lane  -  Edgewood To Parkway ","N Side Cut To Sign, S Side  Cut To Pkway","U",30,7,"Months",null,0]
[92,"Sw Corner Lorcom Lane At Edgewood St.","Roadway Nub To Include Area Behind Leyland Cypress Trees","U",30,7,"Months",null,0]
[93,"Irving St  And 22Nd St.","To Dead End At Old Dominion & Cul-De-Sac","U",30,7,"Months",null,0]
[96,"20Th Rd   -   3219 To Johnson St  ","U-Strips  Both Sides ","U",30,7,"Months",null,0]
[97,"Kenmore St  -  2121 To Lee Highway","Both Sides","U",30,7,"Months",null,0]
[99,"Harvard St & 20Th St","U-Strip To 3121 Harvard St","U",30,7,"Months",null,0]
[102,"Bryan St - 18Th St To Lee Highway","Both Sides","U",30,7,"Months",null,0]
[103,"Calvert St  -  1995 To Lee Hwy","Both Sides To Dead End East U-Strip","U",30,7,"Months",null,0]
[104,"Lee Highway-Cleveland To Calvert St  ","Service Rd Island","U",30,7,"Months",null,0]
[106,"Nelson St. Alley","Alley Behind  1702 - 1710 Nelson St. To 18Th St.","U",30,7,"Months",null,0]
[107,"18Th St,  -  3400 Block","Right Of Way North Side","U",30,7,"Months",null,0]
[108,"Johnson St   -  1909 To 18Th St ","South Right Of Way Easement","U",30,7,"Months",null,0]
[110,"1700 Blk. Adams St. Alley","Alley Behind Houses Between Key Blvd & 18Th St","U",30,7,"Months",null,0]
[111,"1700 Blk. Barton St. Alley","Alley Behind Houses Between Key Blvd & 18Th St","U",30,7,"Months",null,0]
[112,"Highland St. Alley 1800 Blk.","Alley Behind Houses Between Edgewood St. & Danville St.","U",30,7,"Months",null,0]
[117,"17Th St. @ Pollard St.","Utility Strip From 3811 To Deadend Of 17Th St.","U",30,7,"Months",null,0]
[119,"15Th St  -  Quincy St To Taylor St","South U-Strips All Areas Adj. To I-66 ","U",30,7,"Months",null,0]
[120,"Nw Corner Stafford St. & 15Th St.","Nw Corner Lot Between House #4207 15Th St. And Stafford St.","U",30,7,"Months",null,{"$f":"F225*H225","v":0}]
[121,"15Th Street  -   Quincy St To Rear Home Lot  ","Cut Steep Bank","U",30,7,"Months",null,0]
[131,"Cleveland St. Utility Strip","West Side Of Street Between Clarendon & Wilson Blvd.","U",30,7,"Months",null,0]
[133,"21St St  -  Courthouse Rd To Vietch St","U-Strips Both Sides","U",30,7,"Months",null,0]
[134,"Quinn St  -  21St Rd To 21 St","Right Of Ways And Island","U",30,7,"Months",null,0]
[135,"20Th St & N. Troy St ","Along North Side Of Lee Highway","U",30,7,"Months",null,0]
[136,"Quinn St  -  Key Blvd To Lee Highway","East Right Of Way Easement","U",30,7,"Months",null,0]
[142,"Nash St  -  20Th St To Key Blvd","West Right Of Way Easement","U",30,7,"Months",null,0]
[144,"Vietch St. @ Lee Highway","U-Strips From Lee Highway To I-66 Both Sides","U",30,7,"Months",null,0]
[148,"Key Blvd   -  Oak St To Ode St. ","West Side U-Strip","U",30,7,"Months",null,0]
[152,"17Th Street Row @ Lynn St.","Hillside & Island Both Sides Of Overpass","U",30,7,"Months",null,0]
[156,"16Th St. & Quinn St.","Roadside From Rhodes St To & Down Quinn St To 1St Dr","U",30,7,"Months",null,0]
[159,"16Th St   -   1701 To Quinn St","U Strip  North Side","U",30,7,"Months",null,0]
[160,"Fairfax Dr. @ Ft. Myer Dr.","Parking Meter Area South Side Of Fairfax Dr.","U",30,7,"Months",null,0]
[167,"14Th St. & Adams St. Lot","Se Corner Lot To Include Walkway On 14Th Street","P",30,7,"Months",null,0]
[170,"Rolfe Street  - 1307 To 1321","East Side Right Of Way Easement","U",30,7,"Months",null,0]
[171,"15Th St & Scott St ","Corner Vacant Lot","U",30,7,"Months",null,0]
[173,"Quinn St  -  1230 To 1240 ","U-Strip  South Of Rt. 50, West Of Queen And Quinn St","U",30,7,"Months",null,0]
[174,"Rhodes & 14Th St  Bridge Abutments","Both Sides Of Rt. 50 And Sw Corner Of Queens St","U",30,7,"Months",null,0]
[182,"W&L High School-Under Stadium Bleachers","Also Outside Stafford Street Fence ","S",30,7,"Months",null,0]
[185,"Lincoln St. @ 12Th Rd.","Utility Strip On Lincoln Next To House At 3444 12Th Rd.","U",30,7,"Months",null,0]
[188,"13Th Street  -  Johnson  To Jackson St","Both Sides Row Easements","U",30,7,"Months",null,0]
[189,"Johnson St  @ Washington Blvd","100' Past 13Th St  Both Sides Right Of Way Easement","U",30,7,"Months",null,0]
[195,"11Th St Roadside","Northside Of St From Danville St To Danville St","U",30,7,"Months",null,0]
[200,"Lincoln St  -  South Of Washington Blvd","West Side Utility Strip And Center Island","U",30,7,"Months",null,0]
[201,"Fairfax Dr. Alley","Alley Between 3440 & 3444 Fairfax Dr.","U",30,7,"Months",null,0]
[215,"500 Block N. Irving St.","Utlity Strip On Nw Corner At 5Th St.","U",30,7,"Months",null,0]
[216,"Highland St  -  414 To Pershing Dr","West Right Of Way Easement","U",30,7,"Months",null,0]
[219,"Fairfax Dr. - Rt.50 To Barton St.","Row At Parking Meters Across From Rocky Run ","U",30,7,"Months",null,0]
[220,"Fairfax Dr @ Rt 50-Rolf St To Courthouse Rd","Row Easements & Embankment @ Courthouse Rd ","U",30,7,"Months",null,0]
[222,"4Th St. Roadside","Roadside Adjacent To 400 Barton St.","U",30,7,"Months",null,0]
[227,"Bedford St. Alley","Behind Houses On Wash Blvd. From Rt. 50 To Brookside Dr.","U",30,7,"Months",null,0]
[236,"N 17Th St.-3400 Blk.- Dead End","Fire Hydrant & Guardrail","U",30,7,"Months",null,0]
["Lump Sum Total For 30-day Cycle",{"$nulls":7},{"$f":"SUM(I160:I257)","v":0}]
[]
["There Are No Designated Leaf Removal/Collection Locations For This Quadrant "]
[]
["Total For Northeast Mowing and Related Services",{"$nulls":7},{"$f":"I7+I11+I19+I158+I258","v":0}]
[]
[null,null,"Contract Unit Prices "]
[null,null,"  1.  Mowing per Acre, Athletic Field-Bermuda Grass-Reel Mow",{"$nulls":4},"$"]
[null,null,"  2.  Mowing per Acre, Athletic Field-Cool Season",{"$nulls":4},"$"]
[null,null,"  3.  Mowing Per Acre",{"$nulls":4},"$"]
[null,null,"  4.  Grass Clipping Removal Per Acre ",{"$nulls":4},"$"]
[null,null,"  5.  Fertilization per Acre",{"$nulls":4},"$"]
[null,null,"  6.  Weed Control per Acre",{"$nulls":4},"$"]
[null,null,"  7. Overseeding per Acre",{"$nulls":4},"$"]
[null,null,"  8. Leaf Removal per Acre",{"$nulls":4},"$"]
[null,null,"  9. Mechanical Edging per linear Foot",{"$nulls":4},"$"]

{"sheet":"NW","index":2,"n_rows":232,"n_cols":9,"rows_kept":232,"merged":[[16,0,16,7],[21,0,21,7],[38,0,38,7],[150,0,150,7],[210,0,210,7],[216,0,216,7],[219,0,219,7],[222,2,222,7],[223,2,223,6],[224,2,224,6],[225,2,225,6],[226,2,226,6],[227,2,227,6],[228,2,228,6],[229,2,229,6],[230,2,230,6],[231,2,231,6]]}
["Location  ID","Location","Description","Type","Freq.","Estimated Quantity","Weeks or Months","PrIce per Week or Month","Annual Mowing Price"]
[204,"Benamin Banneker Park","Athletic Field - Rectangle - Bermuda Grass - Irrigation - Reel Mower","P","AF",22,"Weeks",null,{"$f":"F2*H2","v":0}]
[205,"Bluemont Junction Park","Athletic Field - Rectangle - Bermuda Grass - Irrigation - Reel Mower","P","AF",22,"Weeks",null,{"$f":"F3*H3","v":0}]
[210,"Charles A. Stewart Park","Athletic Field - Rectangle - Bermuda Grass - Irrigation - Reel Mower","P","AF",22,"Weeks",null,0]
[212,"Fields Park  -  George Mason & Wilson Blvd","Athletic Field - Rectangle - Bermuda Grass - Irrigation - Reel Mower","P","AF",22,"Weeks",null,0]
[213,"Glebe School  -  1700 N. Glebe Rd","Athletic Field - Rectangle - Bermuda Grass - Irrigation - Reel Mower","P","AF",22,"Weeks",null,0]
[214,"Greenbrier Park /Yorktown School-2800 Greenbrier St","Athletic Field #1 - Diamond - Bermuda Grass - Irrigation - Reel Mower","P","AF",22,"Weeks",null,0]
[215,"Greenbrier Park /Yorktown School-2800 Greenbrier St","Athletic Field #2 - Diamond - Bermuda Grass - Irrigation - Reel Mower","P","AF",22,"Weeks",null,0]
[216,"Greenbrier Park /Yorktown School-2800 Greenbrier St","Athletic Field #3 - Diamond - Bermuda Grass - Irrigation - Reel Mower","P","AF",22,"Weeks",null,0]
[217,"Highview Park  -  1900 N. Cameron St","Athletic Field - Diamond - Bermuda Grass - Irrigation - Reel Mower","P","AF",22,"Weeks",null,0]
[222,"Madison Manor Park  -  1201 N. Quantico St","Athletic Field - Combo - Bermuda Grass - Irrigation - Reel Mower","P","AF",22,"Weeks",null,0]
[225,"Powhatan Springs Park 6020 Wilson Blvd.","Athletic Field - Rectangle - Bermuda Grass - Irrigation - Reel Mower","P","AF",22,"Weeks",null,0]
[226,"Swanson Middle School - 5800 Wash. Blvd","Athletic Field - Rectangle - Bermuda Grass - Irrigation - Reel Mower","P","AF",22,"Weeks",null,0]
[227,"Tuckahoe Park  -  2400 N.Sycamore St.","Athletic Field #1 - Combo Diamond - Bermuda Grass - Irrigation - Reel Mower","P","AF",22,"Weeks",null,0]
[231,"Westover Park -  1011 N. Kennebec St","Athletic Field - Rectangle - Bermuda Grass - Irrigation - Reel Mower","P","AF",22,"Weeks",null,0]
[234,"Williamsburg School  -  36Th & N. Harrison St","Athletic Field - Combo Diamond - Bermuda Grass - Irrigation -Reel Mower","P","AF",22,"Weeks",null,0]
["Lump Sum Total for Athletic Fields with Bermuda Grass",{"$nulls":7},{"$f":"SUM(I2:I16)","v":0}]
[]
[208,"Bluemont Park","Athletic Field #3 - Combo Diamond - Cool Season Grass - Irrigation","P","AF",31,"Weeks",null,{"$f":"F19*H19","v":0}]
[232,"Westover Park -  1011 N. Kennebec St","Athletic Field #1 - Diamond - Cool Season Grass - Irrigation","P","AF",31,"Weeks",null,0]
[233,"Westover Park -  1011 N. Kennebec St","Athletic Field #2- Diamond - Cool Season Grass - Irrigation","P","AF",31,"Weeks",null,0]
["Lump Sum Total for Athletic Fields with Cool Season Grass with Irrigation",{"$nulls":7},{"$f":"SUM(I19:I21)","v":0}]
[202,"Arlington Traditional School  -  850 N. George Mason Dr.","Athletic Field #1 - Diamond - Cool Season Grass - No Irrigation","P","AF",31,"Weeks",null,{"$f":"F23*H23","v":0}]
[203,"Arlington Traditional School  -  850 N. George Mason Dr.","Athletic Field #2 - Diamond - Cool Season Grass - No Irrigation","P","AF",31,"Weeks",null,{"$f":"F24*H24","v":0}]
[206,"Bluemont Park","Athletic Field #1 - Diamond - Cool Season Grass - No Irrigation","P","AF",31,"Weeks",null,0]
[207,"Bluemont Park","Athletic Field #2 - Combo Diamond - Cool Season Grass - No Irrigation","P","AF",31,"Weeks",null,0]
[209,"Bluemont Park","Athletic Field Aux - Open Grass - Cool Season Grass - No Irrigation","P","AF",31,"Weeks",null,0]
[211,"East Falls church Park - 1730 N. Roosevelt St.","Athletic Field - Open Grass - Cool Season Grass - No Irrigation","P","AF",31,"Weeks",null,0]
[218,"Jamestown Park Back- 3618 N. Dickerson St.","Athletic Field - Combo Rectangle - Cool Season Grass - No Irrigation","P","AF",31,"Weeks",null,0]
[219,"Jamestown Elementary School Front -  37Th & Delaware St","Athletic Field - Combo Diamond - Cool Season Grass - No Irrigation","P","AF",31,"Weeks",null,0]
[220,"Lacey Woods Park - George Mason Dr @ Wash. Blvd","Athletic Field - Rectangle - Cool Season Grass - No Irrigation","P","AF",31,"Weeks",null,0]
[223,"Nottingham School - Ohio St & Little Falls Rd","Athletic Field #1 - Combo Diamond - Cool Season - No Irrigation","P","AF",31,"Weeks",null,0]
[224,"Nottingham School - Ohio St & Little Falls Rd","Athletic Field #2 - Combo Diamond - Cool Season - No Irrigation","P","AF",31,"Weeks",null,0]
[228,"Walter Reed School - 1644 N McKinley Rd","Athletic Field - Diamond - Cool Season Grass - No Irrigation","P","AF",31,"Weeks",null,0]
[229,"Walter Reed School - 1644 N McKinley Rd","Athletic Field - Lower - Rectangle - Cool Season Grass - No Irrigation","P","AF",31,"Weeks",null,0]
[230,"Walter Reed School - 1644 N McKinley Rd","Athletic Field - Upper - Rectangle - Cool Season Grass - No Irrigation","P","AF",31,"Weeks",null,0]
[235,"Woodlawn Park  -  Buchanan & 14Th St","Athletic Field - Rectangle - Cool Season Grass - No Irrigation","P","AF",31,"Weeks",null,0]
[221,"Lee Center  -  Lee Highway & Lexington St","Athletic Field - Diamond - Cool Season Grass - No Irrigation","P","AF",31,"Weeks",null,0]
["Lump Sum Total for Athletic Fields with Cool Season Grass - No Irrigation",{"$nulls":7},{"$f":"SUM(I23:I38)","v":0}]
[]
[1,"Jamestown Elementary School  -  37Th & Delaware St","All Areas Except Inside Building Sidewalks And Parking Lots","S","7-14",23,"Weeks",null,{"$f":"F41*H41","v":0}]
[2,"Jamestown Park - 3618 N. Dickerson St.","","P","7-14",23,"Weeks",null,{"$f":"F42*H42","v":0}]
[5,"36Th & N. Glebe Rd  -  Street Island","","U","7-14",23,"Weeks",null,0]
[6,"Edison St & 37Th St  -  At Dead End Of N. 37Th St","","U","7-14",23,"Weeks",null,0]
[8,"36Th & Potomac St - 6200 Block Of 36Th St","","U","7-14",23,"Weeks",null,0]
[9,"35Th St & Pocomoke  -  3500 Block Of Potomac St","","U","7-14",23,"Weeks",null,0]
[10,"Minor Hill & Sharp Park-Wlmsburg & Powhattan ","All Areas  Around Tanks & Gardens ","P","7-14",23,"Weeks",null,0]
[11,"Williamsburg Blvd - Little Falls Rd To Glebe","All Islands Including Large Islands At Little Falls","U","7-14",23,"Weeks",null,0]
[12,"Little Falls Road","Street Median From Williamsburg Blvd. To Nottingham St.","U","7-14",23,"Weeks",null,0]
[15,"Williamsburg School  -  36Th & N. Harrison St","All Areas Except Inside Building Sidewalks And Parking Lots","S","7-14",23,"Weeks",null,0]
[16,"George Mason Dr - Old Dominion To Little Falls","","U","7-14",23,"Weeks",null,0]
[19,"John Marshall Dr - Little Falls To Williamsburg ","Island & West Row easement","U","7-14",23,"Weeks",null,0]
[21,"Yorktown Blvd  -  Lexington To Edison","Islands","U","7-14",23,"Weeks",null,0]
[22,"Rock Springs Park - 5000 Little Falls Rd.","Park Goes To Yorktown Blvd @ G.M. Drive   All Areas","p","7-14",23,"Weeks",null,0]
[23,"George Mason Dr - Yorktown Blvd To Route 50","All Islands & Lg. Open Areas At Lee Highway","U","7-14",23,"Weeks",null,0]
[24,"Nottingham School - Ohio St & Little Falls Rd","All Areas Except Inside Building Sidewalks And Parking Lots","S","7-14",23,"Weeks",null,0]
[25,"Chestnut Hills Park - 2723 N Harrison St","Backs Up To Greenbriar Stadium To Include Garden Plots","P","7-14",23,"Weeks",null,0]
[26,"Greenbrier Park /Yorktown  School-2800 Greenbrier St","All Slopes, Adj. U-Strips, Parking Lots, And Fence Lines","P","7-14",23,"Weeks",null,0]
[27,"Yorktown Blvd  -  Under Old Dominion Overpass","Islands And Easements  West Side Of Bridge","U","7-14",23,"Weeks",null,0]
[28,"Birch Cemetery  -  N.28Th St. & Sycamore St.","All Areas ","P","7-14",23,"Weeks",null,0]
[29,"Andrew Ellicot Park - Arizona St, Western Corner","S. Of Williamsburg Blvd  Park And Adj. Rows","P","7-14",23,"Weeks",null,0]
[31,"Tuckahoe School - 6550 N. 26Th St, @ Sycamore St","All Areas Except Inside Building Sidewalks And Parking Lots","S","7-14",23,"Weeks",null,0]
[33,"Sycamore St  -  26Th St To Williamsburg Blvd.","All Islands And Utility Strips & N. Bank @ I-66 Exit Ramp","U","7-14",23,"Weeks",null,0]
[34,"Fairfax Drive -From Westmoreland To Little Falls ","Islands ,  Utility Strip &  Row @ Winchester St.","U","7-14",23,"Weeks",null,0]
[37,"Charles A. Stewart Park  -  Underwood St & 24Th ","All Areas Fences, Rear Areas, Curbs, Playground, ","P","7-14",23,"Weeks",null,0]
[38,"Tuckahoe Park  -  2400 N.Sycamore St.","All Areas From Lee Highway To 26Th St, Woods, U-Strips","P","7-14",23,"Weeks",null,0]
[41,"Ohio St & 26Th  -  Next To 2507 Ohio St","","P","7-14",23,"Weeks",null,0]
[42,"Lee Center  -  Lee Highway & Lexington St","All Areas Including Outside Fence Lines And Adj. To Streets, Mechanical Edging along Entry way","P","7-14",23,"Weeks",null,0]
[44,"John Marshall Greenway - 2200 N. John Marshall Dr.","N 20Th To Lee Hwy  And Field At Lee Hwy","U","7-14",23,"Weeks",null,0]
[45,"Ohio St @ N. 20Th St.","Roadside Adjacent To House #6101 20Th St.","U","7-14",23,"Weeks",null,0]
[46,"Patrick Henry Dr - 20Th St. George Mason Dr.","","U","7-14",23,"Weeks",null,0]
[47,"22Nd & N. Potomac St.  -  Street Island","","U","7-14",23,"Weeks",null,0]
[48,"Parkhurst Park - 5820 N. 20Th St.","Park Loops Behind 20Th & 21St Houses  All Areas","P","7-14",23,"Weeks",null,0]
[52,"Langston Center  -  4854 Lee Highway","All Areas Fences, Rear Areas, Curbs, Playground, Mechanical Edging along entrance way","P","7-14",23,"Weeks",null,0]
[53,"Fire Station # 8  -  4845 Lee Highway","All Areas includes Utility Strips, Mechanical Edging along entrance way","F","7-14",23,"Weeks",null,0]
[54,"Cameron St & Lee Highway  -  Large Islands  ","Totem Pole Areas And Adj. U-Strips","P","7-14",23,"Weeks",null,0]
[57,"Big Walnut Park  -  1901 N. Harrison St","","P","7-14",23,"Weeks",null,0]
[58,"Highview Park  -  1900 N. Cameron St","All Areas And All Perimeters","P","7-14",23,"Weeks",null,0]
[59,"Slater Tract Park  -  N. 19Th & N. Culpeper St.","Both Sides And Wooded Areas In Middle","P","7-14",23,"Weeks",null,0]
[60,"19Th & Culpeper St - Next To 1827 Culpeper St","","U","7-14",23,"Weeks",null,0]
[62,"Glebe School  -  1700 N. Glebe Rd","All Areas Except Inside Building Sidewalks And Parking Lots","S","7-14",23,"Weeks",null,0]
[65,"Dinwiddie St - 17Th St To Edison St. ","South Side Utility Strip","U","7-14",23,"Weeks",null,0]
[66,"17Th & Culpeper St  -  Next To 1717 Culpepper","Also Along Fence On Sw Corner 60' X 6'","U","7-14",23,"Weeks",null,0]
[70,"Benjamin Bannaker Park - 6620 N. 18Th St.","All Areas - Fences, Wooded Areas, Stream Edges","P","7-14",23,"Weeks",null,0]
[71,"East Fallschurch Park - 1730 N. Roosevelt St.","All Areas - Fences, Wooded Areas, Stream Edges","P","7-14",23,"Weeks",null,0]
[77,"21St & N. Potomac St.  -  Street Island","","U","7-14",23,"Weeks",null,0]
[81,"26Th St & Potomac St  -  2500 Block","","U","7-14",23,"Weeks",null,0]
[84,"Ohio St. & N.18Th St.  -  Corner Location","","U","7-14",23,"Weeks",null,0]
[85,"Ohio St. & 14Th St - I-66 Entrance To Bike Trail","","P","7-14",23,"Weeks",null,0]
[86,"Kenilworth St. N. & 15Th St - Island Areas","","U","7-14",23,"Weeks",null,0]
[87,"Madison Manor Park  -  1201 N. Quantico St","All Areas - Fences, Wooded Areas, Stream Edges","P","7-14",23,"Weeks",null,0]
[88,"Four Mile Run Drive & Madison St","West To Cul De Sac","P","7-14",23,"Weeks",null,0]
[90,"Ohio St @ Mckinley Rd - St Row By Bike Trail","To Include Utility Strip Adjacent To 6107 12Th Rd.","P","7-14",23,"Weeks",null,0]
[93,"Swanson Middle School - 5800 Wash. Blvd","Sports Field Area And Street Median @ Crosswalk","P","7-14",23,"Weeks",null,0]
[94,"Mckinley School  -  1030 N. Mckinley Rd.","All Areas Except Inside Building Sidewalks And Parking Lots","S","7-14",23,"Weeks",null,0]
[95,"Mace Park  -  Patrick Henry Dr. To Liberty St.","Also Trail To Arlington Mill Drive And Along Creek ","P","7-14",23,"Weeks",null,0]
[97,"9Th Rd Cul-De-Sac - Near Lexington St ","U-Strip And Bank","U","7-14",23,"Weeks",null,0]
[98,"Westover Park -  1011 N. Kennebec St","All Areas Including Slope Areas and areas around fields","P","7-14",23,"Weeks",null,0]
[100,"Woodlawn Park  -  Buchanan & 14Th St","All Areas From 13Th St To Back Of Hospice","P","7-14",23,"Weeks",null,0]
[101,"Glebe Rd & North 13Th St","","U","7-14",23,"Weeks",null,0]
[102,"Lacey Woods Park - George Mason Dr @ Wash. Blvd","Open Areas, Woods Perimeters, Playground Area, U-Strips","P","7-14",23,"Weeks",null,0]
[104,"Washington Blvd & N. Glebe Rd","Island   50' West Of Glebe Rd","U","7-14",23,"Weeks",null,0]
[105,"Aberdeen St & Washington Blvd @ I-66","Mow Bank & Trim Bumper Rail","U","7-14",23,"Weeks",null,0]
[107,"10Th St  -  At George Mason Dr. & I-66","Nw & Sw Corners","U","7-14",23,"Weeks",null,0]
[108,"9Th & Harrison St At I-66 ","4 Sides Of Bridge & Dead End Area","U","7-14",23,"Weeks",null,0]
[109,"Connector Trail -  Lexington To Harrison St.","South Of I-66  Trail And Street U-Strips","P","7-14",23,"Weeks",null,{"$f":"F106*H106","v":0}]
[112,"Jacksonville St - 9Th Rd To 9Th St ","West Row Easement","U","7-14",23,"Weeks",null,0]
[113,"Arlington Traditional School  -  850 N. George Mason Dr.","All Areas Except Inside Building Sidewalks And Parking Lots","S","7-14",23,"Weeks",null,0]
[114,"Fields Park  -  George Mason & Wilson Blvd","Area Surrounding Field And Bike Trail To Fairfax Drive","P","7-14",23,"Weeks",null,0]
[115,"8Th St & N. Buchanan St.  -  Off Wilson Blvd","","U","7-14",23,"Weeks",null,0]
[116,"Fire Station # 2  -  4815 Wilson Blvd.","All Areas, mechanical edging along entrance way","F","7-14",23,"Weeks",null,0]
[122,"Bon Air Park  - Wilson Blvd To I-66","All Areas-Playfields, Picnic Gnds, Stream Edges, Parking Lots ","P","7-14",23,"Weeks",null,0]
[123,"Wilson Blvd  -  From Mckinley To Lexington","All Islands","U","7-14",23,"Weeks",null,0]
[124,"Patrick Henry Drive  -  Wilson Blvd To N. 10Th","Islands And Some U-Strips","U","7-14",23,"Weeks",null,0]
[126,"Powhatan Springs Park 6020 Wilson Blvd.","All Grass Areas & Sidewalk Utility Strips","P","7-14",23,"Weeks",null,0]
[127,"Bluemont Park  -  Wilson Blvd To Route 50 Bridge","All Areas-Playfields, Picnic Ground, Stream Edges, Parking Lots ","P","7-14",23,"Weeks",null,0]
[134,"800 Block N. Greenbriar St.","Street Island Across From 851","U","7-14",23,"Weeks",null,0]
[136,"Carlin Springs Rd  -  Kensington To G.Mason Dr.","Street Islands","U","7-14",23,"Weeks",null,0]
[137,"Granada St  -  Street Island Near N. 4Th St.","","U","7-14",23,"Weeks",null,0]
[138,"Barrett School  -  4401 N. Henderson Rd","All Areas Except Inside Building Sidewalks And Parking Lots","S","7-14",23,"Weeks",null,0]
[139,"Lubber Run Rec. Center & Park - 300 Park Drive","Rt. 50 To George Mason Drive Including All Access Streets, Mechanical Edging along entrance way","P","7-14",23,"Weeks",null,0]
[140,"Bluemont Junction Trail - Wilson To Bluemont Park","All Open Areas, Street Crossings And Cul-De-Sac Access Areas","P","7-14",23,"Weeks",null,0]
[143,"2Nd Rd & Columbus St","Islands","U","7-14",23,"Weeks",null,0]
[144,"Glebe Rd N. @ Carlyn Springs Rd - Island","1St Island South Of Carlyn Springs Rd","U","7-14",23,"Weeks",null,0]
[145,"Carlin Springs Rd & Kensington St - Bike Trail","Along Bike Trail East Side Of Kensington","P","7-14",23,"Weeks",null,0]
[147,"Granada St & Arlington Blvd  -  Corners","","U","7-14",23,"Weeks",null,0]
[148,"1St Place  -  At Carlin Springs Rd. ","Hillside Area","U","7-14",23,"Weeks",null,0]
[149,"Edison Park  - 213 N. Edison St.","","P","7-14",23,"Weeks",null,0]
[150,"Edison & N. Arlington Blvd  -  Corners","","U","7-14",23,"Weeks",null,0]
[151,"Park Drive & Arlington Blvd","Park & Islands At Shopping Center Entrance & 2 On Rt. 50 ","U","7-14",23,"Weeks",null,0]
[152,"Rte 50 & Glebe Rd - Islands And U-Strips","7 Areas - Ramps, Underpass U-Strips, Islands, ","U","7-14",23,"Weeks",null,0]
[154,"Rt. 50 & George Mason Drive - Islalnds & U-Strips","7 Areas - Glebe Rd To North Henderson St","U","7-14",23,"Weeks",null,0]
[156,"Ashlawn School  -  5950 N. 8Th Rd","All Areas Except Inside Building Sidewalks And Parking Lots","S","7-14",23,"Weeks",null,0]
[157,"Route 50 West Entryway -  @ County Line","Near Nottingham St Intersection  Mow Area Around Sign","U","7-14",23,"Weeks",null,0]
[159,"Rt. 50 & Manchester St -  Rt. 50 Center Island ","West Of Intersection Very Small Island","U","7-14",23,"Weeks",null,0]
[161,"Williamsburg Blvd.- Medians","Medians Fron N. Tridad To N. Westmoreland St.","U","7-14",23,"Weeks",null,0]
[162,"N. George Mason Dr & N. 16Th Street","R0W On N. George Mason & Utility Strip On 16Th St.","U","7-14",23,"Weeks",null,0]
[163,"N. Patrick Henry Dr. Median Strip","Median Strip From N. 16Th St To N. Illinois St.","U","7-14",23,"Weeks",null,0]
[164,"N Aberdeen St. Row","R-O-W In Fron To 1122 N. Aberdeen St.","U","7-14",23,"Weeks",null,0]
[165,"25Th & N. Florida St.","Island At The Intersection Of 25Th & N. Florida St.","U","7-14",23,"Weeks",null,0]
[166,"Buckingham Plaza Mini-Park","Nw Corner Of N. George Mason Dr & Henderson St.","P","7-14",23,"Weeks",null,0]
[167,"N. Wilson Blvd.-Median Strip","Median From N. Edison To N. Fredrick St.","U","7-14",23,"Weeks",null,0]
[168,"N. Emerson St. Row","Row Adjacent To 1501 N. 25Th Street","P","7-14",23,"Weeks",null,0]
[170,"N. Ohio St","Median Fron Washington Blvd. To  N.18Th St.","U","7-14",23,"Weeks",null,0]
[171,"North  Fairfax Drive Park","All Areas Except Inside Building Sidewalk.","P","7-14",23,"Weeks",null,0]
[173,"N. 5Th & Jefferson St.","Row Surroudning 502 N. Jefferson St.","U","7-14",23,"Weeks",null,0]
[174,"N. Abingdon St.","Row Next To 500 N. Abingdon St.-From Abingdon To Stream","P","7-14",23,"Weeks",null,0]
[200,"Walter Reed School - 1644 N McKinley Rd","Grass areas along 18th st N and N Lexington St - Under Construction","P","7-14",23,"Weeks",null,0]
[201,"Walter Reed School Grounds/Westover Library","Grassy areas along N McKinley Rd","S","7-14",23,"Weeks",null,0]
[243,"N Glebe","Medians From Randolph St.To Wilson Blvd.","U","7-14",23,"Weeks",null,0]
["Lump Sum Total for 7 - 14 day  Cycle",{"$nulls":7},{"$f":"SUM(I41:I150)","v":0}]
[]
[3,"Dumbarton St. Next To 3905 (Upper Pimmit Run)","Open Lot East Side Of Street - Upper Pimmit Run","P",30,7,"Months",null,{"$f":"F153*H153","v":0}]
[4,"Dumbarton St. West Side (Upper Pimmitt Run)","Open Lot Between 3900 & 3916 (address for lot is 3912)","P",30,7,"Months",null,{"$f":"F154*H154","v":0}]
[7,"Glebe Rd. & Little Falls Rd.","Traffic Island & N. Utility Strip","U",30,7,"Months",null,0]
[13,"36Th St -  Kensingston St To School Field","North Row Area Adjacent To Street","U",30,7,"Months",null,0]
[14,"Williamsburg School Trail - Field To Harrison St","","P",30,7,"Months",null,0]
[17,"Frederick St. Alley - Behind 3601 Harrison St.","Utility Easement Next To 5155 Williamsburg Blvd.","U",30,7,"Months",null,0]
[18,"Old Dominion Access Road - 29Th To Rock Spring Rd ","","U",30,7,"Months",null,0]
[20,"Harrison St - Little Falls Rd To Yorktown Blvd","East Row easement","U",30,7,"Months",null,0]
[30,"Westmoreland St. At N.29Th St.  ","Sidewalk R-O-W West Side Of Street","U",30,7,"Months",null,0]
[32,"Little Falls Rd -  6714 To Underwood St","On Side Of House At 2720  North Row easement","U",30,7,"Months",null,0]
[35,"Westmoreland St - Fairfax Dr To Williamsburg Blvd","Row Areas Both Side And Adj. To I-66 Bridge","U",30,7,"Months",null,0]
[36,"28Th St. & Westmoreland St.","Sw Corner Lot To Base Of Hill To I-66 Bridge","U",30,7,"Months",null,0]
[39,"26Th St. & Lexington St.","N.E. Corner Roadside Between Curb & Property Fence","U",30,7,"Months",null,0]
[40,"28Th St. R-O-W","Footpath Between Johnmarshall Dr. & Lexington St.","U",30,7,"Months",null,0]
[49,"22Nd St. From Lexington To Kentucky St.","North Side Utility Strip Adjacent To 2115 Lexington St.","U",30,7,"Months",null,0]
[50,"Dinwiddie St @ 2329 - Dead End ","East Row easement","U",30,7,"Months",null,0]
[51,"23Rd Rd - Dickerson St To Deadend  ","South Row easement","U",30,7,"Months",null,0]
[55,"23Rd Rd -  5100 To 5123 24Th St","Alley Behind Shopping Center","U",30,7,"Months",null,0]
[56,"Brandywine St. Alley","Behind Houses From Deadend To 21St St.","U",30,7,"Months",null,0]
[61,"Cameron St  -  Between 1917 & 1927 ","East Row easement","U",30,7,"Months",null,0]
[64,"19Th St. R-O-W - 5200 Block","Dead end R-O-W Off George Mason Dr. After House #5231","U",30,7,"Months",null,0]
[67,"Little Falls Road @ Winchester St","East Row  Adj. To Bike Trail On Little Falls","U",30,7,"Months",null,0]
[68,"Fairfax Drive - Lee Hwy To Vanderpool To 19Th Rd","Row easements Both Sides","U",30,7,"Months",null,0]
[69,"Isaac Crossman Park-Westmoreland St 19Th To Van Buren St","East Side Row All Along Woods","U",30,7,"Months",null,0]
[72,"Roosevelt St. - 1709 To Bike Trail Entrance","East Side Row All Along Woods","U",30,7,"Months",null,0]
[78,"Quantico St - 1918 To Washington Blvd.","Both Side Of Street","U",30,7,"Months",null,0]
[82,"Potomac St @ Pomomoke St - Open Area","Also West Row Of Potomac St To Bike Trail","U",30,7,"Months",null,0]
[83,"Quantico St  @ N. 18Th Rd -  Ne Corner  ","Vacant Lot Area","U",30,7,"Months",null,0]
[89,"Madison St. @ Four Mile Run Dr.","Sidewalk Island & 2' Behind Sidewalk From 1023 To Corner","U",30,7,"Months",null,0]
[91,"Dead-End Mckinley Rd. North Side Of I-66","4Ft. Behind Curb From Biketrail Entrance To House #1321","U",30,7,"Months",null,0]
[92,"Livingston St @ 1222. Trail ","To Swanson School & 15Th Street","U",30,7,"Months",null,0]
[96,"Kentucky St @ 966 - Vacant Lot","Area Between Houses And I-66 To Patrick Henry Drive","U",30,7,"Months",null,0]
[99,"16Th St. Between Houses 5404 & 5506","Roadside Between Fence And Curbline","U",30,7,"Months",null,0]
[103,"Evergreen St.  @ Washington Blvd. Row Areas","All Rows On The Evergreen G.M. Block 4 Sides","U",30,7,"Months",null,0]
[106,"Frederick St. 1100 Block","East Side Between 11Th St. And 11Th Rd.","P",30,7,"Months",null,0]
[110,"Fairfax Drive  -  Harrison St To Kennebec St","South Row easement & Deadend  E Of Harrison St","U",30,7,"Months",null,0]
[111,"N.W. Corner Harrison & Fairfax Dr.","Corner Lot Next To 5409","U",30,7,"Months",null,0]
[117,"Buchanan St  -  Fairfax Dr. To N. 8Th Rd.  ","East Row Easement","U",30,7,"Months",null,0]
[118,"Wilson Blvd @ 4617  - Across From Abington St","Lot Behind Restaurant,  Field & Perimeters","P",30,7,"Months",null,0]
[119,"700 Block Of N. Abingdon St.","Hillside Area East Side Of St. From Wilson To House #733","U",30,7,"Months",null,0]
[120,"Rt. 50 Service Road -  Henderson To Park Drive","South Row Easement","U",30,7,"Months",null,0]
[121,"Wakefield St - Wilson Blvd To Deadend  ","East Row Easement","U",30,7,"Months",null,0]
[125,"Madison St  -  Wilson Blvd. To 934 Madison St.","Also Corner Lot @ Wilson Blvd","U",30,7,"Months",null,0]
[129,"8Th Rd & Lexington St  -  Road In Bluemont   ","Entrance Gate To Soccer Field","P",30,7,"Months",null,0]
[130,"8Th Rd - North Of Manchester St","North Row Easement To Dead End","U",30,7,"Months",null,0]
[131,"Livingston St - Wilson Blvd To 5Th ","West Utility Strip  ","U",30,7,"Months",null,0]
[132,"Wilson Blvd & N Harrison St-Nw Corner Along Wilson Blvd.","8' Area Behind Sidewalk From Harrison St. To Drive Of 5411","U",30,7,"Months",null,0]
[133,"Kensington St At N. 8Th Road  ","Dead End And Planter Area Along Wilson Blvd","U",30,7,"Months",null,0]
[135,"7Th Street  -  Deadend Off Kensington St","","U",30,7,"Months",null,0]
[141,"4Th St & Four Mile Run Dr","West Side Row Adj. To Woods To Dead End","U",30,7,"Months",null,0]
[142,"Jefferson St. Nature Trail","6' Both Sides Of Trail To Carlin Springs Rd.","P",30,7,"Months",null,0]
[146,"Kensington St Berms @ 340 Kensington Cul-De-Sac","Enter At Vepco Gate On Lower Kensington St  All Areas Behind Berms","P",30,7,"Months",null,0]
[153,"5Th & Harrison St  -  Se And Ne Corners","","U",30,7,"Months",null,0]
[155,"Kensington St  - 4Th St-Carlin Springs Rd","West Row easement","U",30,7,"Months",null,0]
[158,"Madison St. Deadend At Rt. 50","Area Between Soundwall And Curb And Along Walk To Rt. 50","U",30,7,"Months",null,0]
[160,"N. Patrick Henry Dr- Medians","Medians On Both Sides Of N. 11Th Street","U",30,7,"Months",null,0]
[169,"N Harrison St. Community Garden","Community Garden Next To 2909 N. Harrison St.","P",30,7,"Months",null,0]
[172,"N. 16Th & Patrick Henry Dr.","Row Next To 1543 N. Patrick Henry Dr.","U",30,7,"Months",null,0]
["Lump Sum Total for 30 day  Cycle",{"$nulls":7},{"$f":"SUM(I153:I210)","v":0}]
[]
[]
[81,"Cherrydale Library","Leaf Collection- Oct. 30, Nov. 30, Dec. 15","L","--",3,"Months",null,{"$f":"F214*H214","v":0}]
[196,"Central Library","Leaf Collection- Oct. 30, Nov. 30, Dec. 15","L","--",3,"Months",null,{"$f":"F215*H215","v":0}]
[201,"Walter Reed/Westover Library","Leaf Collection- Oct. 30, Nov. 30, Dec. 15","L","--",3,"Months",null,0]
["Lump Sum Total for Leaf Collection",{"$nulls":7},{"$f":"SUM(I214:I216)","v":0}]
[]
[]
["Total For Northwest Mowing and Related Services",{"$nulls":7},{"$f":"I17+I22+I39+I151+I211+I217","v":0}]
[]
[]
[null,null,"Contract Unit Prices "]
[null,null,"  1.  Mowing per Acre, Athletic Field-Bermuda Grass-Reel Mow",{"$nulls":4},"$"]
[null,null,"  2.  Mowing per Acre, Athletic Field-Cool Season",{"$nulls":4},"$"]
[null,null,"  3.  Mowing Per Acre",{"$nulls":4},"$"]
[null,null,"  4.  Grass Clipping Removal Per Acre ",{"$nulls":4},"$"]
[null,null,"  5.  Fertilization per Acre",{"$nulls":4},"$"]
[null,null,"  6.  Weed Control per Acre",{"$nulls":4},"$"]
[null,null,"  7. Overseeding per Acre",{"$nulls":4},"$"]
[null,null,"  8. Leaf Removal per Acre",{"$nulls":4},"$"]
[null,null,"  9. Mechanical Edging per linear Foot",{"$nulls":4},"$"]

{"sheet":"SE","index":3,"n_rows":125,"n_cols":9,"rows_kept":125,"merged":[[5,0,5,7],[9,0,9,7],[17,0,17,7],[81,0,81,7],[109,0,109,7],[111,0,111,8],[113,0,113,7],[115,2,115,7],[116,2,116,6],[117,2,117,6],[118,2,118,6],[119,2,119,6],[120,2,120,6],[121,2,121,6],[122,2,122,6],[123,2,123,6],[124,2,124,6]]}
["Location  ID","Location","Description","Type","Freq.","Estimated Quantity","Weeks or Months","PrIce per Week or Month","Annual Mowing Price"]
[92,"Eads St. Park  -  Eads St & Ft  Scott Dr","Athletic Field - Rectangle - Bermuda Grass - Irrigation -Reel Mower","P","AF",22,"Weeks",null,{"$f":"F2*H2","v":0}]
[99,"Thomas Jefferson Comm Center & School - 3501 2Nd St","Athletic Field Upper - Rectangle - Bermuda Grass - Irrigation - Reel Mower","P","AF",22,"Weeks",null,{"$f":"F3*H3","v":0}]
[100,"Virginia Highlands Park  -  1600 Hayes St","Athletic Field #2 - Rectangle - Bermuda Grass - Irrigation - Reel Mower","P","AF",22,"Weeks",null,{"$f":"F4*H4","v":0}]
[94,"Gunston Park  -  1401 28Th St @ Lang St","Athletic Field - Rectangle - Bermuda Grass - Irrigation -Reel Mower","P","AF",22,"Weeks",null,{"$f":"F5*H5","v":0}]
["Lump Sum Total for Athletic Fields with Bermuda Grass",{"$nulls":7},{"$f":"SUM(I2:I5)","v":0}]
[]
[97,"Thomas Jefferson Comm Center & School - 3501 2Nd St","Athletic Field Aux - Open grass - Cool Season Grass - Irrigation","P","AF",31,"Weeks",null,{"$f":"F8*H8","v":0}]
[98,"Thomas Jefferson Comm Center & School - 3501 2Nd St","Athletic Field - Diamond - Cool Season Grass - Irrigation","P","AF",31,"Weeks",null,{"$f":"F9*H9","v":0}]
["Lump Sum Total for Athletic Fields with Cool Season Grass with Irrigation",{"$nulls":7},{"$f":"SUM(I8:I9)","v":0}]
[]
[91,"Hoffman Boston School/ Carver Comm Ctr - 1415 Queen St ","Athletic Field - Rectangle - Cool Season - No Irrigation","P","AF",31,"Weeks",null,{"$f":"F12*H12","v":0}]
[93,"Fort Scott Park  -  2800 Ft Scott Drive","Athletic Field - Diamond - Cool Season - No Irrigation","P","AF",31,"Weeks",null,{"$f":"F13*H13","v":0}]
[95,"Oakridge School  -  1414 24Th St.","Athletic Field - Rectangle - Cool Season Grass - No Irrigation","P","AF",31,"Weeks",null,0]
[96,"Montessori Public School  -  701 Walter Reed Dr","Athletic Field - Combo (diamond) - Cool Season Grass - No Irrigation","P","AF",31,"Weeks",null,0]
[101,"Virginia Highlands Park  -  1600 Hayes St","Athletic Field #3 - Diamond - Cool Season Grass - No Irrigation","P","AF",31,"Weeks",null,0]
[102,"Virginia Highlands Park  -  1600 Hayes St","Athletic Field #4 - Diamond - Cool Season Grass - No Irrigation","P","AF",31,"Weeks",null,0]
["Lump Sum Total for Athletic Fields with Cool Grass - No Irrigation",{"$nulls":7},{"$f":"SUM(I12:I17)","v":0}]
[]
[1,"Arlington Blvd Bike Trail - 3402 Arl Blvd To S. Irving St",null,"U","7-14",23,"Weeks",null,{"$f":"F20*H20","v":0}]
[2,"Rt. 50 And Garfield St.","Open Lot Between Biketrail And Parking Lot","P","7-14",23,"Weeks",null,0]
[3,"Island - Arl. Blvd. 3510 To 3704 ","Between Rt. 50 & Service Road South Row East Of Glebe","U","7-14",23,"Weeks",null,{"$f":"F22*H22","v":0}]
[4,"Thomas Jefferson Comm Center & School - 3501 2Nd St","All Areas, Building Area, Parking Islands, Perimeters, Mechanical Edging along entrance way","P","7-14",23,"Weeks",null,0]
[6,"Butler Holmes Park -  101 Barton St","All Areas","P","7-14",23,"Weeks",null,0]
[9,"Island-S 2Nd St. & Wayne St. & Strip in front of 2311  2nd st S","Island & Adj. Utility Strips ","U","7-14",23,"Weeks",null,0]
[10,"U-Strip  -  S. 6Th St. & Fillmore St. To Courthouse Rd.","Island And North Utility Strip","U","7-14",23,"Weeks",null,0]
[11,"Arlington Heights Playground  -  2200 6Th St","All Areas, & Utility Strips At End Of Vetch St","P","7-14",23,"Weeks",null,0]
[13,"Towers Park - 801 S. Scott St ","All Areas Including Fence Perimeters, Curb Lines","P","7-14",23,"Weeks",null,0]
[14,"Foxcroft Heights Park - 801 S.Oak St.","All Areas, ","P","7-14",23,"Weeks",null,0]
[15,"U-Strip  -  9Th St & S. Irving St  ","North East Corner & Island","U","7-14",23,"Weeks",null,0]
[17,"Open Space  -  S. 1212 Irving Street    ","All Areas Front, Rear And Utility Strip","D","7-14",23,"Weeks",null,0]
[18,"Montessori Public School  -  701 Walter Reed Dr","All Areas Except Inside Building Sidewalks And Parking Lots","S","7-14",23,"Weeks",null,0]
[19,"Fenwick Center  -  800 South Walter Reed Drive","Building Area From Entrance Drive To School Prop.","S","7-14",23,"Weeks",null,0]
[21,"Carver Mini Park - 12Th St & S Queen St","All Areas","P","7-14",23,"Weeks",null,0]
[25,"Cleveland Park - 1030 S. Cleveland St.","All Areas","P","7-14",23,"Weeks",null,0]
[26,"Hoffman Boston School/ Carver Comm Ctr - 1415 Queen St ","All Areas, Building Perimeters, Fencelines, Playground","S","7-14",23,"Weeks",null,0]
[30,"Islands  -    S. Walter Reed Dr","All Street Islands, Glebe To Rt. 50  + 8Th St Islands","U","7-14",23,"Weeks",null,0]
[31,"Walter Reed Center  -  2909 16Th St","Area surrounding Fields, Building Area, Parking Islands, Perimeters, ","P","7-14",23,"Weeks",null,0]
[33,"Island  -  S. Hayes St    Army Navy To S. Eads St.","All Islands And Utility Strips Adj. To Public Property","U","7-14",23,"Weeks",null,0]
[34,"Islands-S Eads-Army Navy Dr To Ft Scott Dr","Street Medians And West Side Utility Strips","U","7-14",23,"Weeks",null,0]
[36,"S. Clark St. & S. 6Th St.","Street Median On Clark St. Between Old Jeff. Davis Hwy. & S. 6Th St.","U","7-14",23,"Weeks",null,0]
[38,"Island  -  S. Fern St  Army Navy Dr To 12Th St","Islands  & All U-Strips Adj. To Public Property","U","7-14",23,"Weeks",null,0]
[39,"Hume School Museum  -  1805 S Arl. Ridge Rd","All Areas And Rear Bank Area And Walkway","P","7-14",23,"Weeks",null,0]
[40,"Island  -  S. 15Th St.   Joyce St. To Hayes St.   ","All Street Islands And Utility Strips Adj. To Public Areas","U","7-14",23,"Weeks",null,0]
[41,"Virginia Highlands Park  -  1600 Hayes St","All Areas surrounding Fields, Building Perimeters, Fencelines, Playground","P","7-14",23,"Weeks",null,0]
[43,"Aurora Hills Center Complex  -  735 18Th St.","All Areas Surrounding Fields, Building Perimeters, Fencelines, Playground, Mechanical Edging along entrance way","P","7-14",23,"Weeks",null,0]
[45,"Nauck Mini Park  -  2551 19Th St. South ","All Areas, Fencelines, Playground, U-Strips","P","7-14",23,"Weeks",null,0]
[46,"Fraser Park - 1800 S. 28Th St.","All Areas, Fencelines, Playground, U-Strips, Woods Edges","P","7-14",23,"Weeks",null,0]
[47,"Oakridge School  -  1414 24Th St.","All Areas Except Inside Building Sidewalks And Parking Lots","S","7-14",23,"Weeks",null,0]
[48,"U-Strip  -  S. 23Rd St   2302 Nash To 23Rd St","","U","7-14",23,"Weeks",null,0]
[49,"Islands  -  Army Navy Drive","25Th St. To Jeff Davis Hwy & Nash St Island","U","7-14",23,"Weeks",null,0]
[50,"Gunston School  -  1401 28Th St.","All Areas Except Inside Building Sidewalks And Parking Lots","S","7-14",23,"Weeks",null,0]
[51,"Gunston Park  -  1401 28Th St @ Lang St","All Areas Surrounding Fields, Fencelines, Playground, U-Strips","P","7-14",23,"Weeks",null,0]
[54,"U-Strip  -  Glebe Rd Service Rd","S  Troy St To W. Glebe Rd ","U","7-14",23,"Weeks",null,0]
[55,"Troy St. Park  -   2629 Troy St","All Areas, Woods Edge, U-Strips, Playground & 26Th St Island","P","7-14",23,"Weeks",null,0]
[57,"Nellie Custis Park  -  S. Grant & 24Th St.","All Areas, Fencelines, Playground, U-Strips","P","7-14",23,"Weeks",null,0]
[58,"Haley Park  -  2400 Meade St @ 24Th St","All Areas, Fencelines, Woods Edges, U-Strip On Arl. Ridge Rd","P","7-14",23,"Weeks",null,0]
[59,"Nina Park  -  800 S. 24Th St.","All Areas, Fencelines, Playground, U-Strips","P","7-14",23,"Weeks",null,0]
[60,"Islands  -   S. 26Th St     Eads St To Ives St","","U","7-14",23,"Weeks",null,0]
[65,"Oakcrest Park  -  1020 Oakcrest Rd @ Kent St","All Areas, Woods Edge, Fencelines, Playground, U-Strips","P","7-14",23,"Weeks",null,0]
[66,"Eads St. Park  -  Eads St & Ft  Scott Dr","All Areas, Fencelines, Playground, U-Strips","P","7-14",23,"Weeks",null,0]
[68,"Fort Scott Park  -  2800 Ft Scott Drive","All Areas, Fencelines, Playground, U-Strips","P","7-14",23,"Weeks",null,0]
[70,"Four Mile Run Park & Glebe Rd Bike Trail  ","27Th Rd @ 4 Mile Run To 395 Bridges","P","7-14",23,"Weeks",null,0]
[71,"Islands -  Route 1  County Line To S 23Rd St","All Island Areas And Adjacent U-Strips","U","7-14",23,"Weeks",null,0]
[72,"S. Army Navy Drive","R-O-W From 1727 To 1745 S. Army Navy Drive","U","7-14",23,"Weeks",null,0]
[73,"Median On S. 15Th St.  &  S. Eads St.","Two Medians  On 15 & S. Eads St.","U","7-14",23,"Weeks",null,0]
[74,"S. Arlington Ridge Road","Utility Strips Both Sides Of St - 2707 To S Meade St- 7 Median @ Lang St","U","7-14",23,"Weeks",null,0]
[75,"S. Glebe Rd-Rt. 1 To S. Arlington Ridge Rd.","Median & Utility Strips","U","7-14",23,"Weeks",null,0]
[76,"Prospect Hill Park","All Areas. Fields, Fencelines, U-Strips","P","7-14",23,"Weeks",null,0]
[77,"Penrose Square- 2503 Columbia Pike","All Areas, Fenceline, Playground, Utility Strips","P","7-14",23,"Weeks",null,0]
[80,"Dhs-Residential Center-1554 Columbia Pike","All Areas Surrounding The Parking Lot","D","7-14",23,"Weeks",null,0]
[81,"Long Bridge Park-475 Long Bridge Rd","All Areas, Fencelines,U-Strips","P","7-14",23,"Weeks",null,0]
[82,"Columbia Pike","Medians From Af Memorial Dr. To Joyce St.","U","7-14",23,"Weeks",null,0]
[83,"Long Bridge Dr.","Utiluty Strips And Grass Areas Along The  Wall","U","7-14",23,"Weeks",null,0]
[84,"S. Arlington Ridge Rd @ 395 Ramp","R-O-W On Both Sides Of Ramp @ Arlington Ridge Rd","U","7-14",23,"Weeks",null,0]
[85,"Old Glebe Rd. & 1St Rd S","Row At 3605 1St Rd S","U","7-14",23,"Weeks",null,0]
[86,"2920 S. Glebe Rd","All Areas, Fenceline And Utility Strips","DES","7-14",23,"Weeks",null,0]
[87,"905 20Th S T. S","Row At 20Th St S & Ives St","P","7-14",23,"Weeks",null,0]
[88,"S Clark St","Row From 12Th To 15Th St","DES","7-14",23,"Weeks",null,0]
[89,"Washington Blvd. Trail","Areas Surrounding The Trail From Rt. 50 To 6Th St S.","DES","7-14",23,"Weeks",null,0]
[90,"705 31St  St. S","All Areas Surrounding House,Utility Strips & Lot","P","7-14",23,"Weeks",null,0]
["Lump Sum Total for 7 - 14 day  Cycle",{"$nulls":7},{"$f":"SUM(I20:I81)","v":0}]
[]
[7,"U-Strips  -  1St Road S.   S. Barton To S. Cleveland St","Both Sides Adj. To Garden Areas","U",30,7,"Months",null,{"$f":"F84*H84","v":0}]
[8,"Cleveland St. From 2Nd St. To 1St Rd.","West Side Of Cleveland St. From Driveway North To 1St Rd.","U",30,7,"Months",null,{"$f":"F85*H85","v":0}]
[12,"600 Block S. Vietch St.","Utility Strip Across From 704 To Deadend Of Street","U",30,7,"Months",null,0]
[16,"3100 Col. Pike Alleyway","Alley Behind Shopping Center Highland St. To Glebe Rd.","U",30,7,"Months",null,0]
[20,"U-Strip  -    S. Highland St  900 To S. 9Th St","Southwest Corner Area","U",30,7,"Months",null,0]
[22,"12Th St. At Shirley Highway","Area Between Curb And Fence","U",30,7,"Months",null,0]
[23,"12Th St. Deadend","Street R-O-W Off Of Rolfe St.","U",30,7,"Months",null,0]
[24,"1400Blk S. Rolfe St.","Hillside R-O-W East Side Of Street From Steps To Fence","U",30,7,"Months",null,0]
[27,"Lot  -  S. 13Th Rd   1500 Block Deadend","Dead End To 395 R.O.W. And Utility Strips","U",30,7,"Months",null,0]
[28,"Lot  -  S. 13Th St   1500 Block Deadend","Hill Side And Utility Strips","U",30,7,"Months",null,0]
[29,"13Th St. & Walter Reed Dr.","N.E. Corner Lot Adjacent To House At 2823 13Th St.","U",30,7,"Months",null,0]
[32,"U-Strips  -  17Th St 3120 To S. Edgewood St     ","Adj. To Apartment Fence, Walkway To Edgewood & Adj. To County Club","U",30,7,"Months",null,0]
[35,"Old Jefferson Davis Hwy  -  S. 6Th To S. 10Th St  ","U-Strips & Open Areas West Side & U-Strip East Side & Adj. To Fence","U",30,7,"Months",null,0]
[37,"U-Strip  -  South Lynn St  15Th To Army Navy","Keep All Vegetation Cleared Back ","U",30,7,"Months",null,0]
[42,"U-Strips  -  S. Lynn St  22Nd St-17Th St","Both Sides Of Street","U",30,7,"Months",null,0]
[44,"U-Strip  -  S. 18Th St & S. Fern St  ","Southwest Corner","U",30,7,"Months",null,0]
[52,"27Th Rd. & Cleveland St. - Nw Corner Lot","Corner Lot Next To Shirley Hwy. Property","U",30,7,"Months",null,0]
[53,"Vacant Lot & Ally  -  S. 27Th & Cleveland St.","Behind Gas Station & Lot Adj. To Restaurant","U",30,7,"Months",null,0]
[56,"23Rd St. - Ft Scott Dr. To Joyce St.","Sidewalk Utility Strip And 10Ft Behind Sidewalk","U",30,7,"Months",null,0]
[61,"26Th St. & Eads St.","Sw Corner Around Transformer Box & Utility Strips","U",30,7,"Months",null,0]
[62,"U-Strips  -  S 31St St   N Side Fern To Grant","","U",30,7,"Months",null,0]
[63,"U-Strips  -  S. Eads St   Glebe Rd To 23Rd Rd","","U",30,7,"Months",null,0]
[64,"26Th St. & Clark St. - Nw Corner","Corner Triangle Next To Lot Garage Entrance","U",30,7,"Months",null,0]
[67,"Crystal Dr. Parking Meters - From 2900 To Airport Overpass","Utility Strip Between Fence And Curb","U",30,7,"Months",null,0]
[69,"2623 Four Mile Run Dr.","Utility Strip Between Fence And Curb","U",30,7,"Months",null,0]
[78,"S. Garfield & 6Th St","R-O-W Between 2929 - 3001 6Th St. S","U",30,7,"Months",null,0]
["Lump Sum Total for 30 day  Cycle",{"$nulls":7},{"$f":"SUM(I84:I109)","v":0}]
[]
["There Are No Designated Leaf Removal/Collection Locations For This Quadrant "]
[]
["Total For Southeast Mowing and Related Services",{"$nulls":7},{"$f":"I6+I10+I18+I82+I110","v":{"v":0,"d":"$0.00"}}]
[]
[null,null,"Contract Unit Prices "]
[null,null,"  1.  Mowing per Acre, Athletic Field-Bermuda Grass-Reel Mow",{"$nulls":4},"$"]
[null,null,"  2.  Mowing per Acre, Athletic Field-Cool Season",{"$nulls":4},"$"]
[null,null,"  3.  Mowing Per Acre",{"$nulls":4},"$"]
[null,null,"  4.  Grass Clipping Removal Per Acre ",{"$nulls":4},"$"]
[null,null,"  5.  Fertilization per Acre",{"$nulls":4},"$"]
[null,null,"  6.  Weed Control per Acre",{"$nulls":4},"$"]
[null,null,"  7. Overseeding per Acre",{"$nulls":4},"$"]
[null,null,"  8. Leaf Removal per Acre",{"$nulls":4},"$"]
[null,null,"  9. Mechanical Edging per linear Foot",{"$nulls":4},"$"]

{"sheet":"SW","index":4,"n_rows":157,"n_cols":9,"rows_kept":157,"merged":[[11,0,11,7],[15,0,15,7],[33,0,33,7],[113,0,113,7],[140,0,140,7],[143,0,143,7],[145,0,145,7],[147,2,147,7],[148,2,148,6],[149,2,149,6],[150,2,150,6],[151,2,151,6],[152,2,152,6],[153,2,153,6],[154,2,154,6],[155,2,155,6],[156,2,156,6]]}
["Location  ID","Location","Description","Type","Freq.","Estimated Quantity","Weeks or Months","PrIce per Week or Month","Annual Mowing Price"]
[108,"Arlington Hall West Park - 290 S. Taylor St.","Athletic Field - Rectangle - Bermuda Grass - Irrigation - Reel Mower","P","AF",22,"Weeks",null,{"$f":"F2*H2","v":0}]
[110,"Barcroft Park - 4100 Four Mile Run Drive","Athletic Field #1 - Outfield ONLY - Diamond - Bermuda - Irrigation - Reel Mower","P","AF",22,"Weeks",null,{"$f":"F3*H3","v":0}]
[111,"Barcroft Park - 4100 Four Mile Run Drive","Athletic Field #2 - Outfield ONLY - Diamond - Bermuda - Irrigation - Reel Mower","P","AF",22,"Weeks",null,0]
[117,"Drew School - 3500 24Th St S.","Athletic Field - Combo (Rectangle) - Bermuda Grass - Irrigation - Reel Mower","P","AF",22,"Weeks",null,0]
[118,"Drew School - 3500 24Th St S.","Athletic Field Aux - Combo (Rectangle) - Bermuda Grass - Irrigation - Reel Mower","P","AF",22,"Weeks",null,0]
[119,"Fairlington Center - 3308 S. Stafford St","Athletic Field - Rectangle - Bermuda Grass - Irrigation - Reel Mower","P","AF",22,"Weeks",null,0]
[125,"Kenmore Middle School - 200 S. Carlin Springs Rd","Athletic Field #2 - Rectangle - Bermuda Grass - Irrigation - Reel Mower","P","AF",22,"Weeks",null,0]
[130,"Wakefield School - 4901 S. Chesterfield Rd","Athletic Field - Rectangle - Bermuda Grass - Irrigation - Reel Mower","P","AF",22,"Weeks",null,0]
[132,"Wakefield School - 4901 S. Chesterfield Rd","Athletic Field #1 - Diamond - Bermuda Grass - Irrigation - Reel Mower","P","AF",22,"Weeks",null,0]
[133,"Wakefield School - 4901 S. Chesterfield Rd","Athletic Field #2 - Diamond - Bermuda Grass - Irrigation - Reel Mower","P","AF",22,"Weeks",null,0]
["Lump Sum Total for Athletic Fields with Bermuda Grass",{"$nulls":7},{"$f":"SUM(I2:I11)","v":0}]
[]
[124,"Kenmore Middle School - 200 S. Carlin Springs Rd","Athletic Field #1 - Combo (Diamond) - Cool Season Grass - Irrigation","P","AF",31,"Weeks",null,{"$f":"F14*H14","v":0}]
[128,"Utah Park - 3191 S. Utah St.","Athletic Field - Diamond - Cool Season Grass - Irrigation","P","AF",31,"Weeks",null,0]
["Lump Sum Total for Athletic Fields with Cool Season Grass with Irrigation",{"$nulls":7},{"$f":"SUM(I14:I15)","v":0}]
[]
[106,"Abingdon School - 3035 S. Abingdon St","Athletic Field - Rectangle - Cool Season - No Irrigation","P","AF",31,"Weeks",null,{"$f":"F18*H18","v":0}]
[109,"Arlington Hall West Park - 290 S. Taylor St.","Athletic Field Aux - Open Grass - Cool Season Grass - No Irrigation","P","AF",31,"Weeks",null,0]
[112,"Barcroft Park - 4100 Four Mile Run Drive","Athletic Field #3 - Outfield ONLY - Diamond - Cool Season - No Irrigation","P","AF",31,"Weeks",null,0]
[113,"Barcroft Park - 4100 Four Mile Run Drive","Athletic Field #4 - Outfield ONLY - Diamond - Cool Season - No Irrigation","P","AF",31,"Weeks",null,0]
[114,"Barcroft Elementary School - 625 S. Wakefield St","Athletic Field - Diamond - Cool Season Grass - No Irrigation","P","AF",31,"Weeks",null,0]
[115,"Carlin Springs School - 5995 5th Rd S","Athletic Field - Aux. - Open Grass - Cool Season Grass - No Irrigation","P","AF",31,"Weeks",null,0]
[116,"Claremont School - 23Rd & Bucanan St","Athletic Field - Rectangle - Cool Season Grass - No Irrigation","P","AF",31,"Weeks",null,0]
[120,"Fort Barnard Park - 2101 Pollard St.","Athletic Field - Diamond - Cool Season Grass - No Irrigation","P","AF",31,"Weeks",null,0]
[121,"Jennie Dean Park - 3630 27Th St","Athletic Field #1 - Diamond - Cool Season Grass - No Irrigation","P","AF",31,"Weeks",null,0]
[122,"Jennie Dean Park - 3630 27Th St","Athletic Field #2 - Diamond - Cool Season Grass - No Irrigation","P","AF",31,"Weeks",null,0]
[123,"Jennie Dean Park - 3630 27Th St","Athletic Field Aux - Open Grass - Cool Season Grass - No Irrigation","P","AF",31,"Weeks",null,0]
[126,"Kenmore Middle School - 200 S. Carlin Springs Rd","Athletic Field #3 - Diamond - Cool Season Grass - No Irrigation","P","AF",31,"Weeks",null,0]
[127,"Kenmore Middle School - 200 S. Carlin Springs Rd","Athletic Field #4 - Open Grass - Cool Season Grass - No Irrigation","P","AF",31,"Weeks",null,0]
[129,"Utah Park - 3191 S. Utah St.","Athletic Field Aux - Open Grass - Cool Season Grass - No Irrigation","P","AF",31,"Weeks",null,0]
[131,"Wakefield School - 4901 S. Chesterfield Rd","Athletic Field - Rectangle - Cool Season Grass - No Irrigation","P","AF",31,"Weeks",null,0]
[107,"Alcova Heights Park 901 S. George Mason Dr.","Athletic Field - Diamond - Cool Season - No Irrigation","P","AF",31,"Weeks",null,0]
["Lump Sum Total for Athletic Fields with Cool Season Grass - No Irrigation",{"$nulls":7},{"$f":"SUM(I18:I33)","v":0}]
[]
[1,"Fire Station #1 - Glebe Rd & 5Th St S","All Areas & Adjacent Street Islands, Mechanical Edging along Entrance Way","F","7-14",23,"Weeks",null,{"$f":"F36*H36","v":0}]
[3,"Carlyn Springs Rd @ Rt. 50","Street Islands Between Nw Service Rd + Adj. Carlyn Springs Islands ","U","7-14",23,"Weeks",null,0]
[4,"Kenmore Middle School - 200 S. Carlin Springs Rd","All Areas Except Inside Building Sidewalks & Parking Lot","S","7-14",23,"Weeks",null,0]
[5,"Carlin Springs School - 5995 5th Rd S","All Areas Except Inside Building Sidewalks & Parking Lot","S","7-14",23,"Weeks",null,0]
[6,"2Nd & S. Jefferson St","Nw Permeter Along Both Streets & Adj. To Glencarlyn Park","U","7-14",23,"Weeks",null,0]
[7,"S. Edison St  @ House #15 (Near Rt. 50)","Island In Middle Of Edison Street ","U","7-14",23,"Weeks",null,0]
[10,"S. 5Th Rd & Kensington St","South Utility Esmt To Dead End Of 5Th (To The West)","U","7-14",23,"Weeks",null,0]
[11,"Glencarlyn Center & Cemetery - 5711 S. 4Th St","Mow All Turf Areas For Both Facilities","P","7-14",23,"Weeks",null,0]
[12,"Glencarlyn Library - 300 S. Kensington St.","All Areas Including Garden In Rear Of Building, Mechanical Edging along entrance ways","L","7-14",23,"Weeks",null,0]
[13,"Glencarlyn Park - 4Th St S & Harrison St.","All Areas Including Roads, Bike Trails, Paths & Open Areas ","P","7-14",23,"Weeks",null,0]
[14,"Harrison St South Of 5Th St.","Street Island","U","7-14",23,"Weeks",null,0]
[16,"Pershing St & 6Th St. S.","Vacant Lot And Utility Strip From 6Th To Vepco Area","P","7-14",23,"Weeks",null,0]
[20,"Long Branch Nature Ctr 625 S.Carlyn Springs Rd","Entrance Drive, Parking Area Trails, Building Area & Gardens","P","7-14",23,"Weeks",null,0]
[21,"Tyrol Hill Park - 7Th Rd & Florida St","All Areas, Utility Strips, Woods Perimeters, And Trails","P","7-14",23,"Weeks",null,0]
[22,"Glencarlyn Park Bike Trail","From Carlyn Springs Road To Columbia Pike","P","7-14",23,"Weeks",null,0]
[26,"Park Glen Park - Arl. Mill Dr & Columbia Pike","Along Arlington  Mill Dr. To Dead End Including Adj. Bike Trail","P","7-14",23,"Weeks",null,0]
[27,"Arlington Mill Community Center","Utility Strip & Parking Lot Island East Side Of Street, Mechanical Edging along entrance way","P","7-14",23,"Weeks",null,0]
[28,"Glencarlyn School - 7375 Carlyn Springs Rd","All Areas Except Inside Building Sidewalks And Parking Lots","S","7-14",23,"Weeks",null,0]
[29,"Arlington Hall West Park - 290 S. Taylor St.","All Areas - Fence Perimeters & Parking Areas","P","7-14",23,"Weeks",null,0]
[30,"Alcova Heights Park 901 S. George Mason Dr.","All Areas - Playgrounds, Picnic Areas Woods Edge","P","7-14",23,"Weeks",null,0]
[31,"4200 Block S. 8Th St","Intersection Of S. 8Th & George Mason Dr Island","U","7-14",23,"Weeks",null,0]
[33,"Barcroft School - 625 S. Wakefield St","All Areas Except Inside Building Sidewalks And Parking Lots","S","7-14",23,"Weeks",null,0]
[35,"S. Monroe St - 12Th To 13Th St.","East Utility Strip And Grave Yard Area","U","7-14",23,"Weeks",null,0]
[36,"NOVA Bike Trail-Columbia Pike To S Shirlington Rd","S. Shirlington Rd.   All Open Space, Utility Strips, Fence Lines","P","7-14",23,"Weeks",null,0]
[37,"Randolph School - 1306 South Quincy St","All Areas Except Inside Building Sidewalks And Parking Lots","S","7-14",23,"Weeks",null,0]
[38,"Doctor'S Run Park - 1301 S. George Mason Dr","All Areas - Playground, Woods Edge, Trails, Utility Strips","P","7-14",23,"Weeks",null,0]
[39,"Monroe Street Park - 1330 S.Monroe St.","All Areas - Playground, Woods Edge, Fence Areas Utility Strips","P","7-14",23,"Weeks",null,0]
[40,"Columbia Pike Entrance @ County Line","Center Island East And West Of Entrance Sign","U","7-14",23,"Weeks",null,0]
[41,"Bailey'S Branch Park","All Areas Including Utility Strips Along Both 10 Streets","P","7-14",23,"Weeks",null,0]
[42,"Jefferson St & S. Columbia Pike","Street Islands To County Line","U","7-14",23,"Weeks",null,0]
[43,"S. George Mason Dr & Dinwiddie St","Hillside And Utility Strip Along Wakefield Sch. Fence","U","7-14",23,"Weeks",null,0]
[44,"S. George Mason Dr    S. Dinwiddie To Rt. 50","All Street Islands. All Utility Strips Adj. To Public Areas","U","7-14",23,"Weeks",null,0]
[46,"S. Four Mile Run Dr - 4100 To G. Mason Dr.","All Street Islands. All Utility Strips Adj. To Public Areas","U","7-14",23,"Weeks",null,0]
[47,"Douglas Park - 1718 Quincy St","All Areas - Playground, Park And 3 House Lots, 1602,1710 & 1714","P","7-14",23,"Weeks",null,0]
[49,"Barcroft Park - 4100 Four Mile Run Drive","All Areas - Woods Edge, Trails, Adj. St.Islands","P","7-14",23,"Weeks",null,0]
[50,"Barcroft Bike Trail @ George Mason Bridge","All Trails And Open Areas On Se, Ne & Sw Corners","P","7-14",23,"Weeks",null,0]
[51,"Fort Barnard Park - 2101 Pollard St.","All Areas - Playground, Adjacent Street Islands","P","7-14",23,"Weeks",null,0]
[53,"Water Tower Park - Walter Reed & Pollard St.","All Areas Inside And Outside Fence And Adj. Street Islands","P","7-14",23,"Weeks",null,0]
[54,"Ft Barnard Dog Exercise Area","All Areas Inside And Adj. Sidewalk Island Along Walter Reed Dr.","P","7-14",23,"Weeks",null,0]
[55,"Fire Station #9 - 1900 S. Walter Reed Dr.","All Areas Including Adj. Street Islands, Mechanical Edging along entrance way","F","7-14",23,"Weeks",null,0]
[56,"Walter Reed Dr. & S. Monroe St.","Open Area In Front Of House #3560 To Include Untility Strip","U","7-14",23,"Weeks",null,0]
[57,"Claremont School - 23Rd & Bucanan St","All Areas Except Inside Building Sidewalks And Parking Lots","S","7-14",23,"Weeks",null,0]
[60,"Wakefield School - 4901 S. Chesterfield Rd","All Areas Except Inside Building Sidewalks And Parking Lots","S","7-14",23,"Weeks",null,0]
[61,"S. Dinwiddie St & S. Chester St  ","Sw Corner Of Intersection Utility Strip All Along Fence And Traffic Island","U","7-14",23,"Weeks",null,0]
[62,"Walter Reed Dr  - Arl. Mill Dr. To Rt. 7","Both sides & all areas - Creek Areas, Woods Edges, Utility Strips, Adj. Islands","P","7-14",23,"Weeks",null,0]
[63,"Arl. Mill Dr Bike Trail Walter Reed To ","Shirlington Rd. All Open Spaces Both Sides Of Creek & Adj. Islands","P","7-14",23,"Weeks",null,0]
[64,"S. Kemper Rd & S. Oxford St ","North East Corner All Along Bottom Of Hill Utility Strip & More","U","7-14",23,"Weeks",null,0]
[65,"S. 19Th St & S. Lorton St","Se And Sw Corners At Walter Reed Drive","U","7-14",23,"Weeks",null,0]
[67,"Nauck Community Entryway-Walter Reed Dr & Kenmore St","Entire Area Around The Planter And Community Sign","P","7-14",23,"Weeks",null,0]
[69,"Shirlington Rd & S. Glebe Rd","Utility Strips And Island Both Sides Of Shirlington Rd","U","7-14",23,"Weeks",null,0]
[71,"Drew School - 3500 24Th St S.","All Areas Except Inside Building Sidewalks And Parking Lots","S","7-14",23,"Weeks",null,0]
[72,"S 23Rd St  2900 Block Utility Strip ","Northside Utility Strip   Glebe Rd To 1St House  10'X120'","U","7-14",23,"Weeks",null,0]
[73,"Ft. Barnard Mini Park -  2448 S. Oakland St","All Areas-Playground, Fence Lines, Utility Strips","P","7-14",23,"Weeks",null,0]
[75,"Shirlington Rd - 4 Mile Run To 24Th Rd","All Utility Strips And Hillsides 6' Behind Sidewalk, Both Sides","U","7-14",23,"Weeks",null,0]
[76,"Trade Center - Arlington Mill Dr & Taylor St","All Berms, Utility Strips, Parking Islands, Building Frontages","U","7-14",23,"Weeks",null,0]
[77,"Trade Center - North Side Areas","All Berms, Utility Strips & Parking Islands Not Including Schools Areas  ","O","7-14",23,"Weeks",null,0]
[78,"Trade Center - South Side Areas","All Berms, Utility Strips & Parking Islands Not Including Schools Areas  ","P","7-14",23,"Weeks",null,0]
[80,"Fire Training Center  At Property Yard"," Around Building And Rear Training Area","F","7-14",23,"Weeks",null,0]
[83,"Abingdon School - 3035 S. Abingdon St","All Areas Except Inside Building Sidewalks And Parking Lots","S","7-14",23,"Weeks",null,0]
[84,"Jennie Dean Park - 3630 27Th St","All Areas - Building, Fences, Utility Strips & Islands","P","7-14",23,"Weeks",null,0]
[85,"Four Mile Run Drive - 3600 Block","Utility Strip Along Fence From J.A. Laporte And Arlington Heating","U","7-14",23,"Weeks",null,0]
[86,"3700 Four Mile Run Dr. - Weta Radio Building","All Areas Around Building","P","7-14",23,"Weeks",null,0]
[88,"Utah Park - 3191 S. Utah St.","All Areas - Building, Fences, Utility Strips & Islands","P","7-14",23,"Weeks",null,0]
[89,"Quaker Lane - Shirlington Circle To 33Rd St","Street Islands From County Line To  Beginning Of Exit Ramp","U","7-14",23,"Weeks",null,0]
[90,"Fairlington Center - 3308 S. Stafford St","All Areas - Building, Fences, Utility Strips & Islands, Mechanical Edging along entrance way","P","7-14",23,"Weeks",null,{"$f":"F100*H100","v":0}]
[92,"Trade Centr-Impound Lot & Equip. Div.","All Berms Surrounding Perimeter Of The Buildings & Interior Fenceline","P","7-14",23,"Weeks",null,0]
[93,"S. Kemper Road","Utility Strip From Oxford St To S. 24Th Street","U","7-14",23,"Weeks",null,0]
[94,"Nauck Town Square-2412 S. Shirlington Rd","Park Area At Shirlington Rd & 24Th St.","P","7-14",23,"Weeks",null,0]
[95,"S. Quincy St.-Medians","2800 & 2900 Blk. S. Quincy St Median  And Utility Strips","U","7-14",23,"Weeks",null,0]
[96,"S Frederick St & George Mason Dr.","Utility Strip At Sw Corner Of S. Frederick St.","U","7-14",23,"Weeks",null,0]
[97,"Drew Park-2412 S. Kenmore St.","All Areas  Playgrond, Fenceline, Utility Strips","P","7-14",23,"Weeks",null,0]
[98,"S. Stafford & 18Th St.","Utility Strip & Fencline Along Cul-De-Sac","U","7-14",23,"Weeks",null,0]
[99,"S. 25Th St.","Utility Strip From S. Kemper To 25Th Court S.","U","7-14",23,"Weeks",null,0]
[100,"Jennie Dean Ext - SE corner of S Four Mile Run & Nelson st","All Areas Including Adj. Utility Strips, Fenceline","P","7-14",23,"Weeks",null,0]
[101,"S. Arlington Mill Dr. Medians","Street Medians - Walter Reed Dr To S 28Th Rd","U","7-14",23,"Weeks",null,0]
[102,"S. Walter Reed Dr","Street Medians-Four Mile Run Dr To Glebe Rd","U","7-14",23,"Weeks",null,0]
[103,"DHS- 5409 3Rd St. S.","All Areas Around Perimeter Of House","D","7-14",23,"Weeks",null,0]
[105,"Northern Virginia Hospital Center Urgent Care","All Areas Around Perimeter Of Building ","DES","7-14",23,"Weeks",null,0]
["Lump Sum Total for 7 - 14 day  Cycle",{"$nulls":7},{"$f":"SUM(I36:I113)","v":0}]
[]
[2,"S. Oakland St - 1St Street To 3Rd St.","West Side Of Oakland St Adj. To Fence.","U",30,7,"Months",null,{"$f":"F116*H116","v":0}]
[8,"Arlington Blvd - Edison To Columbus St ","South Row Adjacent To Rte 50","U",30,7,"Months",null,{"$f":"F117*H117","v":0}]
[9,"S. Manchester St & Rt. 50","S. Manchester St  East Side Along  6' Wood Fence","U",30,7,"Months",null,0]
[15,"5Th & Harrison St.","Westside Roadside Of Harrison St & Northside Roadside 5Th St.","U",30,7,"Months",null,0]
[17,"5Th St S. Dead End To Buchanan St ","Area Around And Beyond Guardrail","P",30,7,"Months",null,0]
[18,"Carlin Springs Rd. Utility Strip","Across From Glen Carlin Elementary School","U",30,7,"Months",null,0]
[19,"Long Branch Nature Ctr Meadow & Trail","Mow Path Through Meadow And To Nature Center","P",30,7,"Months",null,0]
[23,"4800 Block S. 7Th St","Roadside From 4803 To Deadend Of Street","U",30,7,"Months",null,0]
[24,"S. Aberdeen St. 100 Block","Walkway From S. Park Drive To Abingdon St.","U",30,7,"Months",null,0]
[25,"Dinwiddie St. 700 Block","Roadside West Side From 758 Dinwiddie To 5000 7Th St.","U",30,7,"Months",null,0]
[32,"Glebe Rd. Alley - Between 6Th And 7Th St.","Between Houses At 3415 7Th St And 3508 6Th St.","U",30,7,"Months",null,0]
[34,"Row Easement 900 Blk. S. Taylor St.","Road Easement Betwn 923 & 929 From Townhouse Drive To Prop Line","U",30,7,"Months",null,0]
[45,"S. Hamilton Drive 1260 To Forest Drive","South Right Of Way Esmt","U",30,7,"Months",null,0]
[48,"Sw Corner 16Th & Stafford St.","Open Lot & Utility Strip -16Th St To House Driveway 1508 Stafford St.","U",30,7,"Months",null,0]
[52,"Nelson St - Lot #32 Adjacent To 2008 Nelson St.","All Areas Of Open Lot","P",30,7,"Months",null,0]
[58,"S.Columbus St. & S. Chesterfield St.","Roadside Behind Guardrail At Turn","U",30,7,"Months",null,0]
[59,"S.Oxford St. Next To House At 2420","Open Area From Foot Of Hill To Street","U",30,7,"Months",null,0]
[66,"Kenmore St 1900 Block","Hillside Area Including Both Sides Of Steps Between Church & 1914","U",30,7,"Months",null,0]
[68,"Sw Corner Walter Reed Dr. & Glebe Rd.","Treed Corner Lot Behind Houses","U",30,7,"Months",null,0]
[70,"S. Lorton Street 2014","Dead End Area Around Parking Lot","U",30,7,"Months",null,0]
[74,"3719 S. Four Mile Run Dr. Court B","Deadend Of Street At Base Of Retaining Wall","U",30,7,"Months",null,0]
[79,"Trade Center - Reclamation And Recycle Center","All Berms Surrounding Stockpile Yard And Recycle Center","O",30,7,"Months",null,0]
[81,"Bus Exit Rd - Arl. Mill Dr Past School Building"," Hillside On West Side &Trimming On East Side","S",30,7,"Months",null,0]
[87,"S. Quincy St & Randolph St Adj. To 395 Row","Utility Strip Along 395 Fence From Bus Stop South 150'","U",30,7,"Months",null,0]
[91,"S. Four Mile Run Dr & S. Shirlington Rd.","Utility Srips At Corner Of S Four Mile Run Dr & Shirlington Rd.","U",30,7,"Months",null,0]
["Lump Sum Total for 30 day  Cycle",{"$nulls":7},{"$f":"SUM(I116:I140)","v":0}]
[]
[12,"Glencarlyn Library","Leaf Collection - Oct. 30, Nov. 30, and Dec. 15","L","--",3,"Months",null,{"$f":"F143*H143","v":0}]
["Lump Sum Total for Leaf Collection",{"$nulls":7},{"$f":"I143","v":0}]
[]
["Total For Southwest Mowing and Related Services",{"$nulls":7},{"$f":"I12+I16+I34+I114+I141+I144","v":0}]
[]
[null,null,"Contract Unit Prices"]
[null,null,"  1.  Mowing per Acre, Athletic Field-Bermuda Grass-Reel Mow",{"$nulls":4},"$"]
[null,null,"  2.  Mowing per Acre, Athletic Field-Cool Season",{"$nulls":4},"$"]
[null,null,"  3.  Mowing Per Acre",{"$nulls":4},"$"]
[null,null,"  4.  Grass Clipping Removal Per Acre ",{"$nulls":4},"$"]
[null,null,"  5.  Fertilization per Acre",{"$nulls":4},"$"]
[null,null,"  6.  Weed Control per Acre",{"$nulls":4},"$"]
[null,null,"  7. Overseeding per Acre",{"$nulls":4},"$"]
[null,null,"  8. Leaf Removal per Acre",{"$nulls":4},"$"]
[null,null,"  9. Mechanical Edging per linear Foot",{"$nulls":4},"$"]